Workbook

Sheet SDofXbar
A1: Population Data: | F1: List All Possible Samples: | I1: ="Pop Mean = Sample Mean Xbar (Random Variable x)"&CHAR(10)&"Standard Error = Sigma/SQRT(n)*SQRT((N-n)/(N-1))" -> Pop Mean = Sample Mean Xbar (Random Variable x) Standard Error = Sigma/SQRT(n)*SQRT((N-n)/(N-1)) | R1: Increment | S1: 10000 | X1: Population Data:
U2: Frequency | V2: Frequency
A3: SalesRep | B3: Sales = x | D3: Sample Size, n | F3: Name 1 | G3: Name 2 | H3: Name 3 | I3: Name 4 | J3: Name 5 | K3: Hours 1 | L3: Hours 2 | M3: Hours 3 | N3: Hours 4 | O3: Hours 5 | P3: Sample Mean Xbar (Random Variable x) | R3: Lower | S3: Upper | T3: Label | U3: Population Distibution | V3: Sampling Distribution of Xbar | X3: SalesRep | Y3: Sales = x | AD3: n/N
A4: Ashleigh | B4: 83064 | D4: 5 | F4: Ashleigh | G4: Chauncey | H4: Chin | I4: Delila | J4: Elina | K4: =VLOOKUP(F4,$A$4:$B$20,2) -> 83064 | L4: =VLOOKUP(G4,$A$4:$B$20,2) -> 43040 | M4: =VLOOKUP(H4,$A$4:$B$20,2) -> 83768 | N4: =VLOOKUP(I4,$A$4:$B$20,2) -> 101112 | O4: =VLOOKUP(J4,$A$4:$B$20,2) -> 19868 | P4: =AVERAGE(K4:O4) -> 66170.4 | R4: 0 | S4: =R4+$S$1 -> 10000 | T4: =TEXT(R4,"0, K")&" up to "&TEXT(S4,"0, K") -> 0 K up to 10 K | U4: =COUNTIFS($B$4:$B$20,">="&$R4,$B$4:$B$20,"<"&$S4) -> 0 | V4: =COUNTIFS($P$4:$P$6191,">="&$R4,$P$4:$P$6191,"<"&$S4) -> 0 | X4: Ashleigh | Y4: 83064 | AA4: Pop Size = N =
A5: Chauncey | B5: 43040 | F5: Ashleigh | G5: Chauncey | H5: Chin | I5: Delila | J5: Garland | K5: 83064 | L5: 43040 | M5: 83768 | N5: 101112 | O5: 36021 | P5: 69401 | R5: =S4 -> 10000 | S5: 20000 | T5: 10 K up to 20 K | U5: 2 | V5: 0 | X5: Chauncey | Y5: 43040 | AA5: Sample Size = n =
A6: Chin | B6: 83768 | D6: Population Size, N | F6: Ashleigh | G6: Chauncey | H6: Chin | I6: Delila | J6: Gigi | K6: 83064 | L6: 43040 | M6: 83768 | N6: 101112 | O6: 12030 | P6: 64602.8 | R6: 20000 | S6: 30000 | T6: 20 K up to 30 K | U6: 0 | V6: 8 | X6: Chin | Y6: 83768 | AA6: Pop SD = Sigma =
A7: Delila | B7: 101112 | D7: =COUNTA(A4:A20) -> 17 | F7: Ashleigh | G7: Chauncey | H7: Chin | I7: Delila | J7: Gregoria | K7: 83064 | L7: 43040 | M7: 83768 | N7: 101112 | O7: 65219 | P7: 75240.6 | R7: 30000 | S7: 40000 | T7: 30 K up to 40 K | U7: 3 | V7: 114 | X7: Delila | Y7: 101112 | AA7: E(Xbar) Sigma = | AC7: < Pop cuz it lists ALL possible samples
A8: Elina | B8: 19868 | F8: Ashleigh | G8: Chauncey | H8: Chin | I8: Delila | J8: Kacey | K8: 83064 | L8: 43040 | M8: 83768 | N8: 101112 | O8: 94450 | P8: 81086.8 | R8: 40000 | S8: 50000 | T8: 40 K up to 50 K | U8: 2 | V8: 627 | X8: Elina | Y8: 19868 | AA8: Standard Error = Sigma/SQRT(n)*SQRT((N-n)/(N-1))
A9: Garland | B9: 36021 | D9: Max | F9: Ashleigh | G9: Chauncey | H9: Chin | I9: Delila | J9: Kenia | K9: 83064 | L9: 43040 | M9: 83768 | N9: 101112 | O9: 97051 | P9: 81607 | R9: 50000 | S9: 60000 | T9: 50 K up to 60 K | U9: 1 | V9: 1479 | X9: Garland | Y9: 36021
A10: Gigi | B10: 12030 | D10: =MAX(B4:B20) -> 117461 | F10: Ashleigh | G10: Chauncey | H10: Chin | I10: Delila | J10: Kip | K10: 83064 | L10: 43040 | M10: 83768 | N10: 101112 | O10: 50249 | P10: 72246.6 | R10: 60000 | S10: 70000 | T10: 60 K up to 70 K | U10: 1 | V10: 1853 | X10: Gigi | Y10: 12030
A11: Gregoria | B11: 65219 | F11: Ashleigh | G11: Chauncey | H11: Chin | I11: Delila | J11: Paige | K11: 83064 | L11: 43040 | M11: 83768 | N11: 101112 | O11: 117461 | P11: 85689 | R11: 70000 | S11: 80000 | T11: 70 K up to 80 K | U11: 0 | V11: 1420 | X11: Gregoria | Y11: 65219
A12: Kacey | B12: 94450 | D12: Min | F12: Ashleigh | G12: Chauncey | H12: Chin | I12: Delila | J12: Pham | K12: 83064 | L12: 43040 | M12: 83768 | N12: 101112 | O12: 36016 | P12: 69400 | R12: 80000 | S12: 90000 | T12: 80 K up to 90 K | U12: 3 | V12: 588 | X12: Kacey | Y12: 94450
A13: Kenia | B13: 97051 | D13: =MIN(B4:B20) -> 12030 | F13: Ashleigh | G13: Chauncey | H13: Chin | I13: Delila | J13: Reuben | K13: 83064 | L13: 43040 | M13: 83768 | N13: 101112 | O13: 33332 | P13: 68863.2 | R13: 90000 | S13: 100000 | T13: 90 K up to 100 K | U13: 2 | V13: 96 | X13: Kenia | Y13: 97051
A14: Kip | B14: 50249 | F14: Ashleigh | G14: Chauncey | H14: Chin | I14: Delila | J14: Roslyn | K14: 83064 | L14: 43040 | M14: 83768 | N14: 101112 | O14: 41696 | P14: 70536 | R14: 100000 | S14: 110000 | T14: 100 K up to 110 K | U14: 2 | V14: 3 | X14: Kip | Y14: 50249
A15: Paige | B15: 117461 | D15: Combinations | F15: Ashleigh | G15: Chauncey | H15: Chin | I15: Delila | J15: Sheladawn | K15: 83064 | L15: 43040 | M15: 83768 | N15: 101112 | O15: 84732 | P15: 79143.2 | R15: 110000 | S15: 120000 | T15: 110 K up to 120 K | U15: 1 | V15: 0 | X15: Paige | Y15: 117461
A16: Pham | B16: 36016 | D16: =COMBIN(D7,D4) -> 6188 | F16: Ashleigh | G16: Chauncey | H16: Chin | I16: Delila | J16: Tyrone | K16: 83064 | L16: 43040 | M16: 83768 | N16: 101112 | O16: 100893 | P16: 82375.4 | X16: Pham | Y16: 36016
A17: Reuben | B17: 33332 | F17: Ashleigh | G17: Chauncey | H17: Chin | I17: Elina | J17: Garland | K17: 83064 | L17: 43040 | M17: 83768 | N17: 19868 | O17: 36021 | P17: 53152.2 | X17: Reuben | Y17: 33332
A18: Roslyn | B18: 41696 | D18: Pop. Mean = m | F18: Ashleigh | G18: Chauncey | H18: Chin | I18: Elina | J18: Gigi | K18: 83064 | L18: 43040 | M18: 83768 | N18: 19868 | O18: 12030 | P18: 48354 | X18: Roslyn | Y18: 41696
A19: Sheladawn | B19: 84732 | F19: Ashleigh | G19: Chauncey | H19: Chin | I19: Elina | J19: Gregoria | K19: 83064 | L19: 43040 | M19: 83768 | N19: 19868 | O19: 65219 | P19: 58991.8 | X19: Sheladawn | Y19: 84732
A20: Tyrone | B20: 100893 | F20: Ashleigh | G20: Chauncey | H20: Chin | I20: Elina | J20: Kacey | K20: 83064 | L20: 43040 | M20: 83768 | N20: 19868 | O20: 94450 | P20: 64838 | X20: Tyrone | Y20: 100893
D21: E(Xbar) = µXbar = | F21: Ashleigh | G21: Chauncey | H21: Chin | I21: Elina | J21: Kenia | K21: 83064 | L21: 43040 | M21: 83768 | N21: 19868 | O21: 97051 | P21: 65358.2
A22: This is called "unbiased" ==> | D22: =AVERAGE(P4:P6191) -> 64706 | F22: Ashleigh | G22: Chauncey | H22: Chin | I22: Elina | J22: Kip | K22: 83064 | L22: 43040 | M22: 83768 | N22: 19868 | O22: 50249 | P22: 55997.8
A23: Because point estimator = pop parameter | F23: Ashleigh | G23: Chauncey | H23: Chin | I23: Elina | J23: Paige | K23: 83064 | L23: 43040 | M23: 83768 | N23: 19868 | O23: 117461 | P23: 69440.2
D24: Pop SD | F24: Ashleigh | G24: Chauncey | H24: Chin | I24: Elina | J24: Pham | K24: 83064 | L24: 43040 | M24: 83768 | N24: 19868 | O24: 36016 | P24: 53151.2
D25: =_xlfn.STDEV.P(B4:B20) -> 31691.46403 | F25: Ashleigh | G25: Chauncey | H25: Chin | I25: Elina | J25: Reuben | K25: 83064 | L25: 43040 | M25: 83768 | N25: 19868 | O25: 33332 | P25: 52614.4
F26: Ashleigh | G26: Chauncey | H26: Chin | I26: Elina | J26: Roslyn | K26: 83064 | L26: 43040 | M26: 83768 | N26: 19868 | O26: 41696 | P26: 54287.2
D27: Xbar SD | F27: Ashleigh | G27: Chauncey | H27: Chin | I27: Elina | J27: Sheladawn | K27: 83064 | L27: 43040 | M27: 83768 | N27: 19868 | O27: 84732 | P27: 62894.4
D28: =_xlfn.STDEV.P(P4:P6191) -> 12274.05124 | F28: Ashleigh | G28: Chauncey | H28: Chin | I28: Elina | J28: Tyrone | K28: 83064 | L28: 43040 | M28: 83768 | N28: 19868 | O28: 100893 | P28: 66126.6
F29: Ashleigh | G29: Chauncey | H29: Chin | I29: Garland | J29: Gigi | K29: 83064 | L29: 43040 | M29: 83768 | N29: 36021 | O29: 12030 | P29: 51584.6
D30: Standard Error | F30: Ashleigh | G30: Chauncey | H30: Chin | I30: Garland | J30: Gregoria | K30: 83064 | L30: 43040 | M30: 83768 | N30: 36021 | O30: 65219 | P30: 62222.4
D31: =D25/SQRT(D4) -> 14172.85358 | F31: Ashleigh | G31: Chauncey | H31: Chin | I31: Garland | J31: Kacey | K31: 83064 | L31: 43040 | M31: 83768 | N31: 36021 | O31: 94450 | P31: 68068.6
F32: Ashleigh | G32: Chauncey | H32: Chin | I32: Garland | J32: Kenia | K32: 83064 | L32: 43040 | M32: 83768 | N32: 36021 | O32: 97051 | P32: 68588.8
F33: Ashleigh | G33: Chauncey | H33: Chin | I33: Garland | J33: Kip | K33: 83064 | L33: 43040 | M33: 83768 | N33: 36021 | O33: 50249 | P33: 59228.4
A34: *As n increases, Standard Error decreases, which means there is higher probability that Xbar falls within specified distance of Pop Mean | F34: Ashleigh | G34: Chauncey | H34: Chin | I34: Garland | J34: Paige | K34: 83064 | L34: 43040 | M34: 83768 | N34: 36021 | O34: 117461 | P34: 72670.8
F35: Ashleigh | G35: Chauncey | H35: Chin | I35: Garland | J35: Pham | K35: 83064 | L35: 43040 | M35: 83768 | N35: 36021 | O35: 36016 | P35: 56381.8
F36: Ashleigh | G36: Chauncey | H36: Chin | I36: Garland | J36: Reuben | K36: 83064 | L36: 43040 | M36: 83768 | N36: 36021 | O36: 33332 | P36: 55845
F37: Ashleigh | G37: Chauncey | H37: Chin | I37: Garland | J37: Roslyn | K37: 83064 | L37: 43040 | M37: 83768 | N37: 36021 | O37: 41696 | P37: 57517.8
F38: Ashleigh | G38: Chauncey | H38: Chin | I38: Garland | J38: Sheladawn | K38: 83064 | L38: 43040 | M38: 83768 | N38: 36021 | O38: 84732 | P38: 66125
F39: Ashleigh | G39: Chauncey | H39: Chin | I39: Garland | J39: Tyrone | K39: 83064 | L39: 43040 | M39: 83768 | N39: 36021 | O39: 100893 | P39: 69357.2
F40: Ashleigh | G40: Chauncey | H40: Chin | I40: Gigi | J40: Gregoria | K40: 83064 | L40: 43040 | M40: 83768 | N40: 12030 | O40: 65219 | P40: 57424.2
F41: Ashleigh | G41: Chauncey | H41: Chin | I41: Gigi | J41: Kacey | K41: 83064 | L41: 43040 | M41: 83768 | N41: 12030 | O41: 94450 | P41: 63270.4
F42: Ashleigh | G42: Chauncey | H42: Chin | I42: Gigi | J42: Kenia | K42: 83064 | L42: 43040 | M42: 83768 | N42: 12030 | O42: 97051 | P42: 63790.6
F43: Ashleigh | G43: Chauncey | H43: Chin | I43: Gigi | J43: Kip | K43: 83064 | L43: 43040 | M43: 83768 | N43: 12030 | O43: 50249 | P43: 54430.2
F44: Ashleigh | G44: Chauncey | H44: Chin | I44: Gigi | J44: Paige | K44: 83064 | L44: 43040 | M44: 83768 | N44: 12030 | O44: 117461 | P44: 67872.6
F45: Ashleigh | G45: Chauncey | H45: Chin | I45: Gigi | J45: Pham | K45: 83064 | L45: 43040 | M45: 83768 | N45: 12030 | O45: 36016 | P45: 51583.6
F46: Ashleigh | G46: Chauncey | H46: Chin | I46: Gigi | J46: Reuben | K46: 83064 | L46: 43040 | M46: 83768 | N46: 12030 | O46: 33332 | P46: 51046.8
F47: Ashleigh | G47: Chauncey | H47: Chin | I47: Gigi | J47: Roslyn | K47: 83064 | L47: 43040 | M47: 83768 | N47: 12030 | O47: 41696 | P47: 52719.6
F48: Ashleigh | G48: Chauncey | H48: Chin | I48: Gigi | J48: Sheladawn | K48: 83064 | L48: 43040 | M48: 83768 | N48: 12030 | O48: 84732 | P48: 61326.8
F49: Ashleigh | G49: Chauncey | H49: Chin | I49: Gigi | J49: Tyrone | K49: 83064 | L49: 43040 | M49: 83768 | N49: 12030 | O49: 100893 | P49: 64559
F50: Ashleigh | G50: Chauncey | H50: Chin | I50: Gregoria | J50: Kacey | K50: 83064 | L50: 43040 | M50: 83768 | N50: 65219 | O50: 94450 | P50: 73908.2
F51: Ashleigh | G51: Chauncey | H51: Chin | I51: Gregoria | J51: Kenia | K51: 83064 | L51: 43040 | M51: 83768 | N51: 65219 | O51: 97051 | P51: 74428.4
F52: Ashleigh | G52: Chauncey | H52: Chin | I52: Gregoria | J52: Kip | K52: 83064 | L52: 43040 | M52: 83768 | N52: 65219 | O52: 50249 | P52: 65068
F53: Ashleigh | G53: Chauncey | H53: Chin | I53: Gregoria | J53: Paige | K53: 83064 | L53: 43040 | M53: 83768 | N53: 65219 | O53: 117461 | P53: 78510.4
F54: Ashleigh | G54: Chauncey | H54: Chin | I54: Gregoria | J54: Pham | K54: 83064 | L54: 43040 | M54: 83768 | N54: 65219 | O54: 36016 | P54: 62221.4
F55: Ashleigh | G55: Chauncey | H55: Chin | I55: Gregoria | J55: Reuben | K55: 83064 | L55: 43040 | M55: 83768 | N55: 65219 | O55: 33332 | P55: 61684.6
F56: Ashleigh | G56: Chauncey | H56: Chin | I56: Gregoria | J56: Roslyn | K56: 83064 | L56: 43040 | M56: 83768 | N56: 65219 | O56: 41696 | P56: 63357.4
F57: Ashleigh | G57: Chauncey | H57: Chin | I57: Gregoria | J57: Sheladawn | K57: 83064 | L57: 43040 | M57: 83768 | N57: 65219 | O57: 84732 | P57: 71964.6
F58: Ashleigh | G58: Chauncey | H58: Chin | I58: Gregoria | J58: Tyrone | K58: 83064 | L58: 43040 | M58: 83768 | N58: 65219 | O58: 100893 | P58: 75196.8
F59: Ashleigh | G59: Chauncey | H59: Chin | I59: Kacey | J59: Kenia | K59: 83064 | L59: 43040 | M59: 83768 | N59: 94450 | O59: 97051 | P59: 80274.6
F60: Ashleigh | G60: Chauncey | H60: Chin | I60: Kacey | J60: Kip | K60: 83064 | L60: 43040 | M60: 83768 | N60: 94450 | O60: 50249 | P60: 70914.2
F61: Ashleigh | G61: Chauncey | H61: Chin | I61: Kacey | J61: Paige | K61: 83064 | L61: 43040 | M61: 83768 | N61: 94450 | O61: 117461 | P61: 84356.6
F62: Ashleigh | G62: Chauncey | H62: Chin | I62: Kacey | J62: Pham | K62: 83064 | L62: 43040 | M62: 83768 | N62: 94450 | O62: 36016 | P62: 68067.6
F63: Ashleigh | G63: Chauncey | H63: Chin | I63: Kacey | J63: Reuben | K63: 83064 | L63: 43040 | M63: 83768 | N63: 94450 | O63: 33332 | P63: 67530.8
F64: Ashleigh | G64: Chauncey | H64: Chin | I64: Kacey | J64: Roslyn | K64: 83064 | L64: 43040 | M64: 83768 | N64: 94450 | O64: 41696 | P64: 69203.6
F65: Ashleigh | G65: Chauncey | H65: Chin | I65: Kacey | J65: Sheladawn | K65: 83064 | L65: 43040 | M65: 83768 | N65: 94450 | O65: 84732 | P65: 77810.8
F66: Ashleigh | G66: Chauncey | H66: Chin | I66: Kacey | J66: Tyrone | K66: 83064 | L66: 43040 | M66: 83768 | N66: 94450 | O66: 100893 | P66: 81043
F67: Ashleigh | G67: Chauncey | H67: Chin | I67: Kenia | J67: Kip | K67: 83064 | L67: 43040 | M67: 83768 | N67: 97051 | O67: 50249 | P67: 71434.4
F68: Ashleigh | G68: Chauncey | H68: Chin | I68: Kenia | J68: Paige | K68: =VLOOKUP(F68,$A$4:$B$20,2) -> 83064 | L68: =VLOOKUP(G68,$A$4:$B$20,2) -> 43040 | M68: =VLOOKUP(H68,$A$4:$B$20,2) -> 83768 | N68: =VLOOKUP(I68,$A$4:$B$20,2) -> 97051 | O68: =VLOOKUP(J68,$A$4:$B$20,2) -> 117461 | P68: =AVERAGE(K68:O68) -> 84876.8
F69: Ashleigh | G69: Chauncey | H69: Chin | I69: Kenia | J69: Pham | K69: 83064 | L69: 43040 | M69: 83768 | N69: 97051 | O69: 36016 | P69: 68587.8
F70: Ashleigh | G70: Chauncey | H70: Chin | I70: Kenia | J70: Reuben | K70: 83064 | L70: 43040 | M70: 83768 | N70: 97051 | O70: 33332 | P70: 68051
F71: Ashleigh | G71: Chauncey | H71: Chin | I71: Kenia | J71: Roslyn | K71: 83064 | L71: 43040 | M71: 83768 | N71: 97051 | O71: 41696 | P71: 69723.8
F72: Ashleigh | G72: Chauncey | H72: Chin | I72: Kenia | J72: Sheladawn | K72: 83064 | L72: 43040 | M72: 83768 | N72: 97051 | O72: 84732 | P72: 78331
F73: Ashleigh | G73: Chauncey | H73: Chin | I73: Kenia | J73: Tyrone | K73: 83064 | L73: 43040 | M73: 83768 | N73: 97051 | O73: 100893 | P73: 81563.2
F74: Ashleigh | G74: Chauncey | H74: Chin | I74: Kip | J74: Paige | K74: 83064 | L74: 43040 | M74: 83768 | N74: 50249 | O74: 117461 | P74: 75516.4
F75: Ashleigh | G75: Chauncey | H75: Chin | I75: Kip | J75: Pham | K75: 83064 | L75: 43040 | M75: 83768 | N75: 50249 | O75: 36016 | P75: 59227.4
F76: Ashleigh | G76: Chauncey | H76: Chin | I76: Kip | J76: Reuben | K76: 83064 | L76: 43040 | M76: 83768 | N76: 50249 | O76: 33332 | P76: 58690.6
F77: Ashleigh | G77: Chauncey | H77: Chin | I77: Kip | J77: Roslyn | K77: 83064 | L77: 43040 | M77: 83768 | N77: 50249 | O77: 41696 | P77: 60363.4
F78: Ashleigh | G78: Chauncey | H78: Chin | I78: Kip | J78: Sheladawn | K78: 83064 | L78: 43040 | M78: 83768 | N78: 50249 | O78: 84732 | P78: 68970.6
F79: Ashleigh | G79: Chauncey | H79: Chin | I79: Kip | J79: Tyrone | K79: 83064 | L79: 43040 | M79: 83768 | N79: 50249 | O79: 100893 | P79: 72202.8
F80: Ashleigh | G80: Chauncey | H80: Chin | I80: Paige | J80: Pham | K80: 83064 | L80: 43040 | M80: 83768 | N80: 117461 | O80: 36016 | P80: 72669.8
F81: Ashleigh | G81: Chauncey | H81: Chin | I81: Paige | J81: Reuben | K81: 83064 | L81: 43040 | M81: 83768 | N81: 117461 | O81: 33332 | P81: 72133
F82: Ashleigh | G82: Chauncey | H82: Chin | I82: Paige | J82: Roslyn | K82: 83064 | L82: 43040 | M82: 83768 | N82: 117461 | O82: 41696 | P82: 73805.8
F83: Ashleigh | G83: Chauncey | H83: Chin | I83: Paige | J83: Sheladawn | K83: 83064 | L83: 43040 | M83: 83768 | N83: 117461 | O83: 84732 | P83: 82413
F84: Ashleigh | G84: Chauncey | H84: Chin | I84: Paige | J84: Tyrone | K84: 83064 | L84: 43040 | M84: 83768 | N84: 117461 | O84: 100893 | P84: 85645.2
F85: Ashleigh | G85: Chauncey | H85: Chin | I85: Pham | J85: Reuben | K85: 83064 | L85: 43040 | M85: 83768 | N85: 36016 | O85: 33332 | P85: 55844
F86: Ashleigh | G86: Chauncey | H86: Chin | I86: Pham | J86: Roslyn | K86: 83064 | L86: 43040 | M86: 83768 | N86: 36016 | O86: 41696 | P86: 57516.8
F87: Ashleigh | G87: Chauncey | H87: Chin | I87: Pham | J87: Sheladawn | K87: 83064 | L87: 43040 | M87: 83768 | N87: 36016 | O87: 84732 | P87: 66124
F88: Ashleigh | G88: Chauncey | H88: Chin | I88: Pham | J88: Tyrone | K88: 83064 | L88: 43040 | M88: 83768 | N88: 36016 | O88: 100893 | P88: 69356.2
F89: Ashleigh | G89: Chauncey | H89: Chin | I89: Reuben | J89: Roslyn | K89: 83064 | L89: 43040 | M89: 83768 | N89: 33332 | O89: 41696 | P89: 56980
F90: Ashleigh | G90: Chauncey | H90: Chin | I90: Reuben | J90: Sheladawn | K90: 83064 | L90: 43040 | M90: 83768 | N90: 33332 | O90: 84732 | P90: 65587.2
F91: Ashleigh | G91: Chauncey | H91: Chin | I91: Reuben | J91: Tyrone | K91: 83064 | L91: 43040 | M91: 83768 | N91: 33332 | O91: 100893 | P91: 68819.4
F92: Ashleigh | G92: Chauncey | H92: Chin | I92: Roslyn | J92: Sheladawn | K92: 83064 | L92: 43040 | M92: 83768 | N92: 41696 | O92: 84732 | P92: 67260
F93: Ashleigh | G93: Chauncey | H93: Chin | I93: Roslyn | J93: Tyrone | K93: 83064 | L93: 43040 | M93: 83768 | N93: 41696 | O93: 100893 | P93: 70492.2
F94: Ashleigh | G94: Chauncey | H94: Chin | I94: Sheladawn | J94: Tyrone | K94: 83064 | L94: 43040 | M94: 83768 | N94: 84732 | O94: 100893 | P94: 79099.4
F95: Ashleigh | G95: Chauncey | H95: Delila | I95: Elina | J95: Garland | K95: 83064 | L95: 43040 | M95: 101112 | N95: 19868 | O95: 36021 | P95: 56621
F96: Ashleigh | G96: Chauncey | H96: Delila | I96: Elina | J96: Gigi | K96: 83064 | L96: 43040 | M96: 101112 | N96: 19868 | O96: 12030 | P96: 51822.8
F97: Ashleigh | G97: Chauncey | H97: Delila | I97: Elina | J97: Gregoria | K97: 83064 | L97: 43040 | M97: 101112 | N97: 19868 | O97: 65219 | P97: 62460.6
F98: Ashleigh | G98: Chauncey | H98: Delila | I98: Elina | J98: Kacey | K98: 83064 | L98: 43040 | M98: 101112 | N98: 19868 | O98: 94450 | P98: 68306.8
F99: Ashleigh | G99: Chauncey | H99: Delila | I99: Elina | J99: Kenia | K99: 83064 | L99: 43040 | M99: 101112 | N99: 19868 | O99: 97051 | P99: 68827
F100: Ashleigh | G100: Chauncey | H100: Delila | I100: Elina | J100: Kip | K100: 83064 | L100: 43040 | M100: 101112 | N100: 19868 | O100: 50249 | P100: 59466.6
F101: Ashleigh | G101: Chauncey | H101: Delila | I101: Elina | J101: Paige | K101: 83064 | L101: 43040 | M101: 101112 | N101: 19868 | O101: 117461 | P101: 72909
F102: Ashleigh | G102: Chauncey | H102: Delila | I102: Elina | J102: Pham | K102: 83064 | L102: 43040 | M102: 101112 | N102: 19868 | O102: 36016 | P102: 56620
F103: Ashleigh | G103: Chauncey | H103: Delila | I103: Elina | J103: Reuben | K103: 83064 | L103: 43040 | M103: 101112 | N103: 19868 | O103: 33332 | P103: 56083.2
F104: Ashleigh | G104: Chauncey | H104: Delila | I104: Elina | J104: Roslyn | K104: 83064 | L104: 43040 | M104: 101112 | N104: 19868 | O104: 41696 | P104: 57756
F105: Ashleigh | G105: Chauncey | H105: Delila | I105: Elina | J105: Sheladawn | K105: 83064 | L105: 43040 | M105: 101112 | N105: 19868 | O105: 84732 | P105: 66363.2
F106: Ashleigh | G106: Chauncey | H106: Delila | I106: Elina | J106: Tyrone | K106: 83064 | L106: 43040 | M106: 101112 | N106: 19868 | O106: 100893 | P106: 69595.4
F107: Ashleigh | G107: Chauncey | H107: Delila | I107: Garland | J107: Gigi | K107: 83064 | L107: 43040 | M107: 101112 | N107: 36021 | O107: 12030 | P107: 55053.4
F108: Ashleigh | G108: Chauncey | H108: Delila | I108: Garland | J108: Gregoria | K108: 83064 | L108: 43040 | M108: 101112 | N108: 36021 | O108: 65219 | P108: 65691.2
F109: Ashleigh | G109: Chauncey | H109: Delila | I109: Garland | J109: Kacey | K109: 83064 | L109: 43040 | M109: 101112 | N109: 36021 | O109: 94450 | P109: 71537.4
F110: Ashleigh | G110: Chauncey | H110: Delila | I110: Garland | J110: Kenia | K110: 83064 | L110: 43040 | M110: 101112 | N110: 36021 | O110: 97051 | P110: 72057.6
F111: Ashleigh | G111: Chauncey | H111: Delila | I111: Garland | J111: Kip | K111: 83064 | L111: 43040 | M111: 101112 | N111: 36021 | O111: 50249 | P111: 62697.2
F112: Ashleigh | G112: Chauncey | H112: Delila | I112: Garland | J112: Paige | K112: 83064 | L112: 43040 | M112: 101112 | N112: 36021 | O112: 117461 | P112: 76139.6
F113: Ashleigh | G113: Chauncey | H113: Delila | I113: Garland | J113: Pham | K113: 83064 | L113: 43040 | M113: 101112 | N113: 36021 | O113: 36016 | P113: 59850.6
F114: Ashleigh | G114: Chauncey | H114: Delila | I114: Garland | J114: Reuben | K114: 83064 | L114: 43040 | M114: 101112 | N114: 36021 | O114: 33332 | P114: 59313.8
F115: Ashleigh | G115: Chauncey | H115: Delila | I115: Garland | J115: Roslyn | K115: 83064 | L115: 43040 | M115: 101112 | N115: 36021 | O115: 41696 | P115: 60986.6
F116: Ashleigh | G116: Chauncey | H116: Delila | I116: Garland | J116: Sheladawn | K116: 83064 | L116: 43040 | M116: 101112 | N116: 36021 | O116: 84732 | P116: 69593.8
F117: Ashleigh | G117: Chauncey | H117: Delila | I117: Garland | J117: Tyrone | K117: 83064 | L117: 43040 | M117: 101112 | N117: 36021 | O117: 100893 | P117: 72826
F118: Ashleigh | G118: Chauncey | H118: Delila | I118: Gigi | J118: Gregoria | K118: 83064 | L118: 43040 | M118: 101112 | N118: 12030 | O118: 65219 | P118: 60893
F119: Ashleigh | G119: Chauncey | H119: Delila | I119: Gigi | J119: Kacey | K119: 83064 | L119: 43040 | M119: 101112 | N119: 12030 | O119: 94450 | P119: 66739.2
F120: Ashleigh | G120: Chauncey | H120: Delila | I120: Gigi | J120: Kenia | K120: 83064 | L120: 43040 | M120: 101112 | N120: 12030 | O120: 97051 | P120: 67259.4
F121: Ashleigh | G121: Chauncey | H121: Delila | I121: Gigi | J121: Kip | K121: 83064 | L121: 43040 | M121: 101112 | N121: 12030 | O121: 50249 | P121: 57899
F122: Ashleigh | G122: Chauncey | H122: Delila | I122: Gigi | J122: Paige | K122: 83064 | L122: 43040 | M122: 101112 | N122: 12030 | O122: 117461 | P122: 71341.4
F123: Ashleigh | G123: Chauncey | H123: Delila | I123: Gigi | J123: Pham | K123: 83064 | L123: 43040 | M123: 101112 | N123: 12030 | O123: 36016 | P123: 55052.4
F124: Ashleigh | G124: Chauncey | H124: Delila | I124: Gigi | J124: Reuben | K124: 83064 | L124: 43040 | M124: 101112 | N124: 12030 | O124: 33332 | P124: 54515.6
F125: Ashleigh | G125: Chauncey | H125: Delila | I125: Gigi | J125: Roslyn | K125: 83064 | L125: 43040 | M125: 101112 | N125: 12030 | O125: 41696 | P125: 56188.4
F126: Ashleigh | G126: Chauncey | H126: Delila | I126: Gigi | J126: Sheladawn | K126: 83064 | L126: 43040 | M126: 101112 | N126: 12030 | O126: 84732 | P126: 64795.6
F127: Ashleigh | G127: Chauncey | H127: Delila | I127: Gigi | J127: Tyrone | K127: 83064 | L127: 43040 | M127: 101112 | N127: 12030 | O127: 100893 | P127: 68027.8
F128: Ashleigh | G128: Chauncey | H128: Delila | I128: Gregoria | J128: Kacey | K128: 83064 | L128: 43040 | M128: 101112 | N128: 65219 | O128: 94450 | P128: 77377
F129: Ashleigh | G129: Chauncey | H129: Delila | I129: Gregoria | J129: Kenia | K129: 83064 | L129: 43040 | M129: 101112 | N129: 65219 | O129: 97051 | P129: 77897.2
F130: Ashleigh | G130: Chauncey | H130: Delila | I130: Gregoria | J130: Kip | K130: 83064 | L130: 43040 | M130: 101112 | N130: 65219 | O130: 50249 | P130: 68536.8
F131: Ashleigh | G131: Chauncey | H131: Delila | I131: Gregoria | J131: Paige | K131: 83064 | L131: 43040 | M131: 101112 | N131: 65219 | O131: 117461 | P131: 81979.2
F132: Ashleigh | G132: Chauncey | H132: Delila | I132: Gregoria | J132: Pham | K132: =VLOOKUP(F132,$A$4:$B$20,2) -> 83064 | L132: =VLOOKUP(G132,$A$4:$B$20,2) -> 43040 | M132: =VLOOKUP(H132,$A$4:$B$20,2) -> 101112 | N132: =VLOOKUP(I132,$A$4:$B$20,2) -> 65219 | O132: =VLOOKUP(J132,$A$4:$B$20,2) -> 36016 | P132: =AVERAGE(K132:O132) -> 65690.2
F133: Ashleigh | G133: Chauncey | H133: Delila | I133: Gregoria | J133: Reuben | K133: 83064 | L133: 43040 | M133: 101112 | N133: 65219 | O133: 33332 | P133: 65153.4
F134: Ashleigh | G134: Chauncey | H134: Delila | I134: Gregoria | J134: Roslyn | K134: 83064 | L134: 43040 | M134: 101112 | N134: 65219 | O134: 41696 | P134: 66826.2
F135: Ashleigh | G135: Chauncey | H135: Delila | I135: Gregoria | J135: Sheladawn | K135: 83064 | L135: 43040 | M135: 101112 | N135: 65219 | O135: 84732 | P135: 75433.4
F136: Ashleigh | G136: Chauncey | H136: Delila | I136: Gregoria | J136: Tyrone | K136: 83064 | L136: 43040 | M136: 101112 | N136: 65219 | O136: 100893 | P136: 78665.6
F137: Ashleigh | G137: Chauncey | H137: Delila | I137: Kacey | J137: Kenia | K137: 83064 | L137: 43040 | M137: 101112 | N137: 94450 | O137: 97051 | P137: 83743.4
F138: Ashleigh | G138: Chauncey | H138: Delila | I138: Kacey | J138: Kip | K138: 83064 | L138: 43040 | M138: 101112 | N138: 94450 | O138: 50249 | P138: 74383
F139: Ashleigh | G139: Chauncey | H139: Delila | I139: Kacey | J139: Paige | K139: 83064 | L139: 43040 | M139: 101112 | N139: 94450 | O139: 117461 | P139: 87825.4
F140: Ashleigh | G140: Chauncey | H140: Delila | I140: Kacey | J140: Pham | K140: 83064 | L140: 43040 | M140: 101112 | N140: 94450 | O140: 36016 | P140: 71536.4
F141: Ashleigh | G141: Chauncey | H141: Delila | I141: Kacey | J141: Reuben | K141: 83064 | L141: 43040 | M141: 101112 | N141: 94450 | O141: 33332 | P141: 70999.6
F142: Ashleigh | G142: Chauncey | H142: Delila | I142: Kacey | J142: Roslyn | K142: 83064 | L142: 43040 | M142: 101112 | N142: 94450 | O142: 41696 | P142: 72672.4
F143: Ashleigh | G143: Chauncey | H143: Delila | I143: Kacey | J143: Sheladawn | K143: 83064 | L143: 43040 | M143: 101112 | N143: 94450 | O143: 84732 | P143: 81279.6
F144: Ashleigh | G144: Chauncey | H144: Delila | I144: Kacey | J144: Tyrone | K144: 83064 | L144: 43040 | M144: 101112 | N144: 94450 | O144: 100893 | P144: 84511.8
F145: Ashleigh | G145: Chauncey | H145: Delila | I145: Kenia | J145: Kip | K145: 83064 | L145: 43040 | M145: 101112 | N145: 97051 | O145: 50249 | P145: 74903.2
F146: Ashleigh | G146: Chauncey | H146: Delila | I146: Kenia | J146: Paige | K146: 83064 | L146: 43040 | M146: 101112 | N146: 97051 | O146: 117461 | P146: 88345.6
F147: Ashleigh | G147: Chauncey | H147: Delila | I147: Kenia | J147: Pham | K147: 83064 | L147: 43040 | M147: 101112 | N147: 97051 | O147: 36016 | P147: 72056.6
F148: Ashleigh | G148: Chauncey | H148: Delila | I148: Kenia | J148: Reuben | K148: 83064 | L148: 43040 | M148: 101112 | N148: 97051 | O148: 33332 | P148: 71519.8
F149: Ashleigh | G149: Chauncey | H149: Delila | I149: Kenia | J149: Roslyn | K149: 83064 | L149: 43040 | M149: 101112 | N149: 97051 | O149: 41696 | P149: 73192.6
F150: Ashleigh | G150: Chauncey | H150: Delila | I150: Kenia | J150: Sheladawn | K150: 83064 | L150: 43040 | M150: 101112 | N150: 97051 | O150: 84732 | P150: 81799.8
F151: Ashleigh | G151: Chauncey | H151: Delila | I151: Kenia | J151: Tyrone | K151: 83064 | L151: 43040 | M151: 101112 | N151: 97051 | O151: 100893 | P151: 85032
F152: Ashleigh | G152: Chauncey | H152: Delila | I152: Kip | J152: Paige | K152: 83064 | L152: 43040 | M152: 101112 | N152: 50249 | O152: 117461 | P152: 78985.2
F153: Ashleigh | G153: Chauncey | H153: Delila | I153: Kip | J153: Pham | K153: 83064 | L153: 43040 | M153: 101112 | N153: 50249 | O153: 36016 | P153: 62696.2
F154: Ashleigh | G154: Chauncey | H154: Delila | I154: Kip | J154: Reuben | K154: 83064 | L154: 43040 | M154: 101112 | N154: 50249 | O154: 33332 | P154: 62159.4
F155: Ashleigh | G155: Chauncey | H155: Delila | I155: Kip | J155: Roslyn | K155: 83064 | L155: 43040 | M155: 101112 | N155: 50249 | O155: 41696 | P155: 63832.2
F156: Ashleigh | G156: Chauncey | H156: Delila | I156: Kip | J156: Sheladawn | K156: 83064 | L156: 43040 | M156: 101112 | N156: 50249 | O156: 84732 | P156: 72439.4
F157: Ashleigh | G157: Chauncey | H157: Delila | I157: Kip | J157: Tyrone | K157: 83064 | L157: 43040 | M157: 101112 | N157: 50249 | O157: 100893 | P157: 75671.6
F158: Ashleigh | G158: Chauncey | H158: Delila | I158: Paige | J158: Pham | K158: 83064 | L158: 43040 | M158: 101112 | N158: 117461 | O158: 36016 | P158: 76138.6
F159: Ashleigh | G159: Chauncey | H159: Delila | I159: Paige | J159: Reuben | K159: 83064 | L159: 43040 | M159: 101112 | N159: 117461 | O159: 33332 | P159: 75601.8
F160: Ashleigh | G160: Chauncey | H160: Delila | I160: Paige | J160: Roslyn | K160: 83064 | L160: 43040 | M160: 101112 | N160: 117461 | O160: 41696 | P160: 77274.6
F161: Ashleigh | G161: Chauncey | H161: Delila | I161: Paige | J161: Sheladawn | K161: 83064 | L161: 43040 | M161: 101112 | N161: 117461 | O161: 84732 | P161: 85881.8
F162: Ashleigh | G162: Chauncey | H162: Delila | I162: Paige | J162: Tyrone | K162: 83064 | L162: 43040 | M162: 101112 | N162: 117461 | O162: 100893 | P162: 89114
F163: Ashleigh | G163: Chauncey | H163: Delila | I163: Pham | J163: Reuben | K163: 83064 | L163: 43040 | M163: 101112 | N163: 36016 | O163: 33332 | P163: 59312.8
F164: Ashleigh | G164: Chauncey | H164: Delila | I164: Pham | J164: Roslyn | K164: 83064 | L164: 43040 | M164: 101112 | N164: 36016 | O164: 41696 | P164: 60985.6
F165: Ashleigh | G165: Chauncey | H165: Delila | I165: Pham | J165: Sheladawn | K165: 83064 | L165: 43040 | M165: 101112 | N165: 36016 | O165: 84732 | P165: 69592.8
F166: Ashleigh | G166: Chauncey | H166: Delila | I166: Pham | J166: Tyrone | K166: 83064 | L166: 43040 | M166: 101112 | N166: 36016 | O166: 100893 | P166: 72825
F167: Ashleigh | G167: Chauncey | H167: Delila | I167: Reuben | J167: Roslyn | K167: 83064 | L167: 43040 | M167: 101112 | N167: 33332 | O167: 41696 | P167: 60448.8
F168: Ashleigh | G168: Chauncey | H168: Delila | I168: Reuben | J168: Sheladawn | K168: 83064 | L168: 43040 | M168: 101112 | N168: 33332 | O168: 84732 | P168: 69056
F169: Ashleigh | G169: Chauncey | H169: Delila | I169: Reuben | J169: Tyrone | K169: 83064 | L169: 43040 | M169: 101112 | N169: 33332 | O169: 100893 | P169: 72288.2
F170: Ashleigh | G170: Chauncey | H170: Delila | I170: Roslyn | J170: Sheladawn | K170: 83064 | L170: 43040 | M170: 101112 | N170: 41696 | O170: 84732 | P170: 70728.8
F171: Ashleigh | G171: Chauncey | H171: Delila | I171: Roslyn | J171: Tyrone | K171: 83064 | L171: 43040 | M171: 101112 | N171: 41696 | O171: 100893 | P171: 73961
F172: Ashleigh | G172: Chauncey | H172: Delila | I172: Sheladawn | J172: Tyrone | K172: 83064 | L172: 43040 | M172: 101112 | N172: 84732 | O172: 100893 | P172: 82568.2
F173: Ashleigh | G173: Chauncey | H173: Elina | I173: Garland | J173: Gigi | K173: 83064 | L173: 43040 | M173: 19868 | N173: 36021 | O173: 12030 | P173: 38804.6
F174: Ashleigh | G174: Chauncey | H174: Elina | I174: Garland | J174: Gregoria | K174: 83064 | L174: 43040 | M174: 19868 | N174: 36021 | O174: 65219 | P174: 49442.4
F175: Ashleigh | G175: Chauncey | H175: Elina | I175: Garland | J175: Kacey | K175: 83064 | L175: 43040 | M175: 19868 | N175: 36021 | O175: 94450 | P175: 55288.6
F176: Ashleigh | G176: Chauncey | H176: Elina | I176: Garland | J176: Kenia | K176: 83064 | L176: 43040 | M176: 19868 | N176: 36021 | O176: 97051 | P176: 55808.8
F177: Ashleigh | G177: Chauncey | H177: Elina | I177: Garland | J177: Kip | K177: 83064 | L177: 43040 | M177: 19868 | N177: 36021 | O177: 50249 | P177: 46448.4
F178: Ashleigh | G178: Chauncey | H178: Elina | I178: Garland | J178: Paige | K178: 83064 | L178: 43040 | M178: 19868 | N178: 36021 | O178: 117461 | P178: 59890.8
F179: Ashleigh | G179: Chauncey | H179: Elina | I179: Garland | J179: Pham | K179: 83064 | L179: 43040 | M179: 19868 | N179: 36021 | O179: 36016 | P179: 43601.8
F180: Ashleigh | G180: Chauncey | H180: Elina | I180: Garland | J180: Reuben | K180: 83064 | L180: 43040 | M180: 19868 | N180: 36021 | O180: 33332 | P180: 43065
F181: Ashleigh | G181: Chauncey | H181: Elina | I181: Garland | J181: Roslyn | K181: 83064 | L181: 43040 | M181: 19868 | N181: 36021 | O181: 41696 | P181: 44737.8
F182: Ashleigh | G182: Chauncey | H182: Elina | I182: Garland | J182: Sheladawn | K182: 83064 | L182: 43040 | M182: 19868 | N182: 36021 | O182: 84732 | P182: 53345
F183: Ashleigh | G183: Chauncey | H183: Elina | I183: Garland | J183: Tyrone | K183: 83064 | L183: 43040 | M183: 19868 | N183: 36021 | O183: 100893 | P183: 56577.2
F184: Ashleigh | G184: Chauncey | H184: Elina | I184: Gigi | J184: Gregoria | K184: 83064 | L184: 43040 | M184: 19868 | N184: 12030 | O184: 65219 | P184: 44644.2
F185: Ashleigh | G185: Chauncey | H185: Elina | I185: Gigi | J185: Kacey | K185: 83064 | L185: 43040 | M185: 19868 | N185: 12030 | O185: 94450 | P185: 50490.4
F186: Ashleigh | G186: Chauncey | H186: Elina | I186: Gigi | J186: Kenia | K186: 83064 | L186: 43040 | M186: 19868 | N186: 12030 | O186: 97051 | P186: 51010.6
F187: Ashleigh | G187: Chauncey | H187: Elina | I187: Gigi | J187: Kip | K187: 83064 | L187: 43040 | M187: 19868 | N187: 12030 | O187: 50249 | P187: 41650.2
F188: Ashleigh | G188: Chauncey | H188: Elina | I188: Gigi | J188: Paige | K188: 83064 | L188: 43040 | M188: 19868 | N188: 12030 | O188: 117461 | P188: 55092.6
F189: Ashleigh | G189: Chauncey | H189: Elina | I189: Gigi | J189: Pham | K189: 83064 | L189: 43040 | M189: 19868 | N189: 12030 | O189: 36016 | P189: 38803.6
F190: Ashleigh | G190: Chauncey | H190: Elina | I190: Gigi | J190: Reuben | K190: 83064 | L190: 43040 | M190: 19868 | N190: 12030 | O190: 33332 | P190: 38266.8
F191: Ashleigh | G191: Chauncey | H191: Elina | I191: Gigi | J191: Roslyn | K191: 83064 | L191: 43040 | M191: 19868 | N191: 12030 | O191: 41696 | P191: 39939.6
F192: Ashleigh | G192: Chauncey | H192: Elina | I192: Gigi | J192: Sheladawn | K192: 83064 | L192: 43040 | M192: 19868 | N192: 12030 | O192: 84732 | P192: 48546.8
F193: Ashleigh | G193: Chauncey | H193: Elina | I193: Gigi | J193: Tyrone | K193: 83064 | L193: 43040 | M193: 19868 | N193: 12030 | O193: 100893 | P193: 51779
F194: Ashleigh | G194: Chauncey | H194: Elina | I194: Gregoria | J194: Kacey | K194: 83064 | L194: 43040 | M194: 19868 | N194: 65219 | O194: 94450 | P194: 61128.2
F195: Ashleigh | G195: Chauncey | H195: Elina | I195: Gregoria | J195: Kenia | K195: 83064 | L195: 43040 | M195: 19868 | N195: 65219 | O195: 97051 | P195: 61648.4
F196: Ashleigh | G196: Chauncey | H196: Elina | I196: Gregoria | J196: Kip | K196: =VLOOKUP(F196,$A$4:$B$20,2) -> 83064 | L196: =VLOOKUP(G196,$A$4:$B$20,2) -> 43040 | M196: =VLOOKUP(H196,$A$4:$B$20,2) -> 19868 | N196: =VLOOKUP(I196,$A$4:$B$20,2) -> 65219 | O196: =VLOOKUP(J196,$A$4:$B$20,2) -> 50249 | P196: =AVERAGE(K196:O196) -> 52288
F197: Ashleigh | G197: Chauncey | H197: Elina | I197: Gregoria | J197: Paige | K197: 83064 | L197: 43040 | M197: 19868 | N197: 65219 | O197: 117461 | P197: 65730.4
F198: Ashleigh | G198: Chauncey | H198: Elina | I198: Gregoria | J198: Pham | K198: 83064 | L198: 43040 | M198: 19868 | N198: 65219 | O198: 36016 | P198: 49441.4
F199: Ashleigh | G199: Chauncey | H199: Elina | I199: Gregoria | J199: Reuben | K199: 83064 | L199: 43040 | M199: 19868 | N199: 65219 | O199: 33332 | P199: 48904.6
F200: Ashleigh | G200: Chauncey | H200: Elina | I200: Gregoria | J200: Roslyn | K200: 83064 | L200: 43040 | M200: 19868 | N200: 65219 | O200: 41696 | P200: 50577.4
... 5991 more rows

Sheet SDofXbar (an)
A1: Population Data: | F1: List All Possible Samples: | I1: ="Pop Mean = Sample Mean Xbar (Random Variable x)"&CHAR(10)&"Standard Error = Sigma/SQRT(n)*SQRT((N-n)/(N-1))" -> Pop Mean = Sample Mean Xbar (Random Variable x) Standard Error = Sigma/SQRT(n)*SQRT((N-n)/(N-1)) | R1: Increment | S1: 10000 | X1: Population Data:
U2: Frequency | V2: Frequency
A3: SalesRep | B3: Sales = x | D3: Sample Size, n | F3: Name 1 | G3: Name 2 | H3: Name 3 | I3: Name 4 | J3: Name 5 | K3: Hours 1 | L3: Hours 2 | M3: Hours 3 | N3: Hours 4 | O3: Hours 5 | P3: Sample Mean Xbar (Random Variable x) | R3: Lower | S3: Upper | T3: Label | U3: Population Distibution | V3: Sampling Distribution of Xbar | X3: SalesRep | Y3: Sales = x | AD3: n/N
A4: Ashleigh | B4: 83064 | D4: 5 | F4: Ashleigh | G4: Chauncey | H4: Chin | I4: Delila | J4: Elina | K4: =VLOOKUP(F4,$A$4:$B$20,2) -> 83064 | L4: =VLOOKUP(G4,$A$4:$B$20,2) -> 43040 | M4: =VLOOKUP(H4,$A$4:$B$20,2) -> 83768 | N4: =VLOOKUP(I4,$A$4:$B$20,2) -> 101112 | O4: =VLOOKUP(J4,$A$4:$B$20,2) -> 19868 | P4: =AVERAGE(K4:O4) -> 66170.4 | R4: 0 | S4: =R4+$S$1 -> 10000 | T4: =TEXT(R4,"0, K")&" up to "&TEXT(S4,"0, K") -> 0 K up to 10 K | U4: =COUNTIFS($B$4:$B$20,">="&$R4,$B$4:$B$20,"<"&$S4) -> 0 | V4: =COUNTIFS($P$4:$P$6191,">="&$R4,$P$4:$P$6191,"<"&$S4) -> 0 | X4: Ashleigh | Y4: 83064 | AA4: Pop Size = N = | AB4: =COUNT(Y4:Y20) -> 17 | AD4: =AB5/AB4 -> 0.2941176471
A5: Chauncey | B5: 43040 | F5: Ashleigh | G5: Chauncey | H5: Chin | I5: Delila | J5: Garland | K5: 83064 | L5: 43040 | M5: 83768 | N5: 101112 | O5: 36021 | P5: 69401 | R5: =S4 -> 10000 | S5: 20000 | T5: 10 K up to 20 K | U5: 2 | V5: 0 | X5: Chauncey | Y5: 43040 | AA5: Sample Size = n = | AB5: =COUNT(K4:O4) -> 5
A6: Chin | B6: 83768 | D6: Population Size, N | F6: Ashleigh | G6: Chauncey | H6: Chin | I6: Delila | J6: Gigi | K6: 83064 | L6: 43040 | M6: 83768 | N6: 101112 | O6: 12030 | P6: 64602.8 | R6: 20000 | S6: 30000 | T6: 20 K up to 30 K | U6: 0 | V6: 8 | X6: Chin | Y6: 83768 | AA6: Pop SD = Sigma = | AB6: =_xlfn.STDEV.P(Y4:Y20) -> 31691.46403
A7: Delila | B7: 101112 | D7: =COUNTA(A4:A20) -> 17 | F7: Ashleigh | G7: Chauncey | H7: Chin | I7: Delila | J7: Gregoria | K7: 83064 | L7: 43040 | M7: 83768 | N7: 101112 | O7: 65219 | P7: 75240.6 | R7: 30000 | S7: 40000 | T7: 30 K up to 40 K | U7: 3 | V7: 114 | X7: Delila | Y7: 101112 | AA7: E(Xbar) Sigma = | AB7: =_xlfn.STDEV.P(P4:P6191) -> 12274.05124 | AC7: < Pop cuz it lists ALL possible samples
A8: Elina | B8: 19868 | F8: Ashleigh | G8: Chauncey | H8: Chin | I8: Delila | J8: Kacey | K8: 83064 | L8: 43040 | M8: 83768 | N8: 101112 | O8: 94450 | P8: 81086.8 | R8: 40000 | S8: 50000 | T8: 40 K up to 50 K | U8: 2 | V8: 627 | X8: Elina | Y8: 19868 | AA8: Standard Error = Sigma/SQRT(n)*SQRT((N-n)/(N-1)) | AB8: =AB6/SQRT(AB5)*SQRT((AB4-AB5)/(AB4-1)) -> 12274.05124
A9: Garland | B9: 36021 | D9: Max | F9: Ashleigh | G9: Chauncey | H9: Chin | I9: Delila | J9: Kenia | K9: 83064 | L9: 43040 | M9: 83768 | N9: 101112 | O9: 97051 | P9: 81607 | R9: 50000 | S9: 60000 | T9: 50 K up to 60 K | U9: 1 | V9: 1479 | X9: Garland | Y9: 36021
A10: Gigi | B10: 12030 | D10: =MAX(B4:B20) -> 117461 | F10: Ashleigh | G10: Chauncey | H10: Chin | I10: Delila | J10: Kip | K10: 83064 | L10: 43040 | M10: 83768 | N10: 101112 | O10: 50249 | P10: 72246.6 | R10: 60000 | S10: 70000 | T10: 60 K up to 70 K | U10: 1 | V10: 1853 | X10: Gigi | Y10: 12030
A11: Gregoria | B11: 65219 | F11: Ashleigh | G11: Chauncey | H11: Chin | I11: Delila | J11: Paige | K11: 83064 | L11: 43040 | M11: 83768 | N11: 101112 | O11: 117461 | P11: 85689 | R11: 70000 | S11: 80000 | T11: 70 K up to 80 K | U11: 0 | V11: 1420 | X11: Gregoria | Y11: 65219
A12: Kacey | B12: 94450 | D12: Min | F12: Ashleigh | G12: Chauncey | H12: Chin | I12: Delila | J12: Pham | K12: 83064 | L12: 43040 | M12: 83768 | N12: 101112 | O12: 36016 | P12: 69400 | R12: 80000 | S12: 90000 | T12: 80 K up to 90 K | U12: 3 | V12: 588 | X12: Kacey | Y12: 94450
A13: Kenia | B13: 97051 | D13: =MIN(B4:B20) -> 12030 | F13: Ashleigh | G13: Chauncey | H13: Chin | I13: Delila | J13: Reuben | K13: 83064 | L13: 43040 | M13: 83768 | N13: 101112 | O13: 33332 | P13: 68863.2 | R13: 90000 | S13: 100000 | T13: 90 K up to 100 K | U13: 2 | V13: 96 | X13: Kenia | Y13: 97051
A14: Kip | B14: 50249 | F14: Ashleigh | G14: Chauncey | H14: Chin | I14: Delila | J14: Roslyn | K14: 83064 | L14: 43040 | M14: 83768 | N14: 101112 | O14: 41696 | P14: 70536 | R14: 100000 | S14: 110000 | T14: 100 K up to 110 K | U14: 2 | V14: 3 | X14: Kip | Y14: 50249
A15: Paige | B15: 117461 | D15: Combinations | F15: Ashleigh | G15: Chauncey | H15: Chin | I15: Delila | J15: Sheladawn | K15: 83064 | L15: 43040 | M15: 83768 | N15: 101112 | O15: 84732 | P15: 79143.2 | R15: 110000 | S15: 120000 | T15: 110 K up to 120 K | U15: 1 | V15: 0 | X15: Paige | Y15: 117461
A16: Pham | B16: 36016 | D16: =COMBIN(D7,D4) -> 6188 | F16: Ashleigh | G16: Chauncey | H16: Chin | I16: Delila | J16: Tyrone | K16: 83064 | L16: 43040 | M16: 83768 | N16: 101112 | O16: 100893 | P16: 82375.4 | X16: Pham | Y16: 36016
A17: Reuben | B17: 33332 | F17: Ashleigh | G17: Chauncey | H17: Chin | I17: Elina | J17: Garland | K17: 83064 | L17: 43040 | M17: 83768 | N17: 19868 | O17: 36021 | P17: 53152.2 | X17: Reuben | Y17: 33332
A18: Roslyn | B18: 41696 | D18: Pop. Mean = m | F18: Ashleigh | G18: Chauncey | H18: Chin | I18: Elina | J18: Gigi | K18: 83064 | L18: 43040 | M18: 83768 | N18: 19868 | O18: 12030 | P18: 48354 | X18: Roslyn | Y18: 41696
A19: Sheladawn | B19: 84732 | F19: Ashleigh | G19: Chauncey | H19: Chin | I19: Elina | J19: Gregoria | K19: 83064 | L19: 43040 | M19: 83768 | N19: 19868 | O19: 65219 | P19: 58991.8 | X19: Sheladawn | Y19: 84732
A20: Tyrone | B20: 100893 | F20: Ashleigh | G20: Chauncey | H20: Chin | I20: Elina | J20: Kacey | K20: 83064 | L20: 43040 | M20: 83768 | N20: 19868 | O20: 94450 | P20: 64838 | X20: Tyrone | Y20: 100893
D21: E(Xbar) = µXbar = | F21: Ashleigh | G21: Chauncey | H21: Chin | I21: Elina | J21: Kenia | K21: 83064 | L21: 43040 | M21: 83768 | N21: 19868 | O21: 97051 | P21: 65358.2
A22: This is called "unbiased" ==> | D22: =AVERAGE(P4:P6191) -> 64706 | F22: Ashleigh | G22: Chauncey | H22: Chin | I22: Elina | J22: Kip | K22: 83064 | L22: 43040 | M22: 83768 | N22: 19868 | O22: 50249 | P22: 55997.8
A23: Because point estimator = pop parameter | F23: Ashleigh | G23: Chauncey | H23: Chin | I23: Elina | J23: Paige | K23: 83064 | L23: 43040 | M23: 83768 | N23: 19868 | O23: 117461 | P23: 69440.2
D24: Pop SD | F24: Ashleigh | G24: Chauncey | H24: Chin | I24: Elina | J24: Pham | K24: 83064 | L24: 43040 | M24: 83768 | N24: 19868 | O24: 36016 | P24: 53151.2
D25: =_xlfn.STDEV.P(B4:B20) -> 31691.46403 | F25: Ashleigh | G25: Chauncey | H25: Chin | I25: Elina | J25: Reuben | K25: 83064 | L25: 43040 | M25: 83768 | N25: 19868 | O25: 33332 | P25: 52614.4
F26: Ashleigh | G26: Chauncey | H26: Chin | I26: Elina | J26: Roslyn | K26: 83064 | L26: 43040 | M26: 83768 | N26: 19868 | O26: 41696 | P26: 54287.2
D27: Xbar SD | F27: Ashleigh | G27: Chauncey | H27: Chin | I27: Elina | J27: Sheladawn | K27: 83064 | L27: 43040 | M27: 83768 | N27: 19868 | O27: 84732 | P27: 62894.4
D28: =_xlfn.STDEV.P(P4:P6191) -> 12274.05124 | F28: Ashleigh | G28: Chauncey | H28: Chin | I28: Elina | J28: Tyrone | K28: 83064 | L28: 43040 | M28: 83768 | N28: 19868 | O28: 100893 | P28: 66126.6
F29: Ashleigh | G29: Chauncey | H29: Chin | I29: Garland | J29: Gigi | K29: 83064 | L29: 43040 | M29: 83768 | N29: 36021 | O29: 12030 | P29: 51584.6
D30: Standard Error | F30: Ashleigh | G30: Chauncey | H30: Chin | I30: Garland | J30: Gregoria | K30: 83064 | L30: 43040 | M30: 83768 | N30: 36021 | O30: 65219 | P30: 62222.4
D31: =D25/SQRT(D4) -> 14172.85358 | F31: Ashleigh | G31: Chauncey | H31: Chin | I31: Garland | J31: Kacey | K31: 83064 | L31: 43040 | M31: 83768 | N31: 36021 | O31: 94450 | P31: 68068.6
F32: Ashleigh | G32: Chauncey | H32: Chin | I32: Garland | J32: Kenia | K32: 83064 | L32: 43040 | M32: 83768 | N32: 36021 | O32: 97051 | P32: 68588.8
F33: Ashleigh | G33: Chauncey | H33: Chin | I33: Garland | J33: Kip | K33: 83064 | L33: 43040 | M33: 83768 | N33: 36021 | O33: 50249 | P33: 59228.4
A34: *As n increases, Standard Error decreases, which means there is higher probability that Xbar falls within specified distance of Pop Mean | F34: Ashleigh | G34: Chauncey | H34: Chin | I34: Garland | J34: Paige | K34: 83064 | L34: 43040 | M34: 83768 | N34: 36021 | O34: 117461 | P34: 72670.8
F35: Ashleigh | G35: Chauncey | H35: Chin | I35: Garland | J35: Pham | K35: 83064 | L35: 43040 | M35: 83768 | N35: 36021 | O35: 36016 | P35: 56381.8
F36: Ashleigh | G36: Chauncey | H36: Chin | I36: Garland | J36: Reuben | K36: 83064 | L36: 43040 | M36: 83768 | N36: 36021 | O36: 33332 | P36: 55845
F37: Ashleigh | G37: Chauncey | H37: Chin | I37: Garland | J37: Roslyn | K37: 83064 | L37: 43040 | M37: 83768 | N37: 36021 | O37: 41696 | P37: 57517.8
F38: Ashleigh | G38: Chauncey | H38: Chin | I38: Garland | J38: Sheladawn | K38: 83064 | L38: 43040 | M38: 83768 | N38: 36021 | O38: 84732 | P38: 66125
F39: Ashleigh | G39: Chauncey | H39: Chin | I39: Garland | J39: Tyrone | K39: 83064 | L39: 43040 | M39: 83768 | N39: 36021 | O39: 100893 | P39: 69357.2
F40: Ashleigh | G40: Chauncey | H40: Chin | I40: Gigi | J40: Gregoria | K40: 83064 | L40: 43040 | M40: 83768 | N40: 12030 | O40: 65219 | P40: 57424.2
F41: Ashleigh | G41: Chauncey | H41: Chin | I41: Gigi | J41: Kacey | K41: 83064 | L41: 43040 | M41: 83768 | N41: 12030 | O41: 94450 | P41: 63270.4
F42: Ashleigh | G42: Chauncey | H42: Chin | I42: Gigi | J42: Kenia | K42: 83064 | L42: 43040 | M42: 83768 | N42: 12030 | O42: 97051 | P42: 63790.6
F43: Ashleigh | G43: Chauncey | H43: Chin | I43: Gigi | J43: Kip | K43: 83064 | L43: 43040 | M43: 83768 | N43: 12030 | O43: 50249 | P43: 54430.2
F44: Ashleigh | G44: Chauncey | H44: Chin | I44: Gigi | J44: Paige | K44: 83064 | L44: 43040 | M44: 83768 | N44: 12030 | O44: 117461 | P44: 67872.6
F45: Ashleigh | G45: Chauncey | H45: Chin | I45: Gigi | J45: Pham | K45: 83064 | L45: 43040 | M45: 83768 | N45: 12030 | O45: 36016 | P45: 51583.6
F46: Ashleigh | G46: Chauncey | H46: Chin | I46: Gigi | J46: Reuben | K46: 83064 | L46: 43040 | M46: 83768 | N46: 12030 | O46: 33332 | P46: 51046.8
F47: Ashleigh | G47: Chauncey | H47: Chin | I47: Gigi | J47: Roslyn | K47: 83064 | L47: 43040 | M47: 83768 | N47: 12030 | O47: 41696 | P47: 52719.6
F48: Ashleigh | G48: Chauncey | H48: Chin | I48: Gigi | J48: Sheladawn | K48: 83064 | L48: 43040 | M48: 83768 | N48: 12030 | O48: 84732 | P48: 61326.8
F49: Ashleigh | G49: Chauncey | H49: Chin | I49: Gigi | J49: Tyrone | K49: 83064 | L49: 43040 | M49: 83768 | N49: 12030 | O49: 100893 | P49: 64559
F50: Ashleigh | G50: Chauncey | H50: Chin | I50: Gregoria | J50: Kacey | K50: 83064 | L50: 43040 | M50: 83768 | N50: 65219 | O50: 94450 | P50: 73908.2
F51: Ashleigh | G51: Chauncey | H51: Chin | I51: Gregoria | J51: Kenia | K51: 83064 | L51: 43040 | M51: 83768 | N51: 65219 | O51: 97051 | P51: 74428.4
F52: Ashleigh | G52: Chauncey | H52: Chin | I52: Gregoria | J52: Kip | K52: 83064 | L52: 43040 | M52: 83768 | N52: 65219 | O52: 50249 | P52: 65068
F53: Ashleigh | G53: Chauncey | H53: Chin | I53: Gregoria | J53: Paige | K53: 83064 | L53: 43040 | M53: 83768 | N53: 65219 | O53: 117461 | P53: 78510.4
F54: Ashleigh | G54: Chauncey | H54: Chin | I54: Gregoria | J54: Pham | K54: 83064 | L54: 43040 | M54: 83768 | N54: 65219 | O54: 36016 | P54: 62221.4
F55: Ashleigh | G55: Chauncey | H55: Chin | I55: Gregoria | J55: Reuben | K55: 83064 | L55: 43040 | M55: 83768 | N55: 65219 | O55: 33332 | P55: 61684.6
F56: Ashleigh | G56: Chauncey | H56: Chin | I56: Gregoria | J56: Roslyn | K56: 83064 | L56: 43040 | M56: 83768 | N56: 65219 | O56: 41696 | P56: 63357.4
F57: Ashleigh | G57: Chauncey | H57: Chin | I57: Gregoria | J57: Sheladawn | K57: 83064 | L57: 43040 | M57: 83768 | N57: 65219 | O57: 84732 | P57: 71964.6
F58: Ashleigh | G58: Chauncey | H58: Chin | I58: Gregoria | J58: Tyrone | K58: 83064 | L58: 43040 | M58: 83768 | N58: 65219 | O58: 100893 | P58: 75196.8
F59: Ashleigh | G59: Chauncey | H59: Chin | I59: Kacey | J59: Kenia | K59: 83064 | L59: 43040 | M59: 83768 | N59: 94450 | O59: 97051 | P59: 80274.6
F60: Ashleigh | G60: Chauncey | H60: Chin | I60: Kacey | J60: Kip | K60: 83064 | L60: 43040 | M60: 83768 | N60: 94450 | O60: 50249 | P60: 70914.2
F61: Ashleigh | G61: Chauncey | H61: Chin | I61: Kacey | J61: Paige | K61: 83064 | L61: 43040 | M61: 83768 | N61: 94450 | O61: 117461 | P61: 84356.6
F62: Ashleigh | G62: Chauncey | H62: Chin | I62: Kacey | J62: Pham | K62: 83064 | L62: 43040 | M62: 83768 | N62: 94450 | O62: 36016 | P62: 68067.6
F63: Ashleigh | G63: Chauncey | H63: Chin | I63: Kacey | J63: Reuben | K63: 83064 | L63: 43040 | M63: 83768 | N63: 94450 | O63: 33332 | P63: 67530.8
F64: Ashleigh | G64: Chauncey | H64: Chin | I64: Kacey | J64: Roslyn | K64: 83064 | L64: 43040 | M64: 83768 | N64: 94450 | O64: 41696 | P64: 69203.6
F65: Ashleigh | G65: Chauncey | H65: Chin | I65: Kacey | J65: Sheladawn | K65: 83064 | L65: 43040 | M65: 83768 | N65: 94450 | O65: 84732 | P65: 77810.8
F66: Ashleigh | G66: Chauncey | H66: Chin | I66: Kacey | J66: Tyrone | K66: 83064 | L66: 43040 | M66: 83768 | N66: 94450 | O66: 100893 | P66: 81043
F67: Ashleigh | G67: Chauncey | H67: Chin | I67: Kenia | J67: Kip | K67: 83064 | L67: 43040 | M67: 83768 | N67: 97051 | O67: 50249 | P67: 71434.4
F68: Ashleigh | G68: Chauncey | H68: Chin | I68: Kenia | J68: Paige | K68: =VLOOKUP(F68,$A$4:$B$20,2) -> 83064 | L68: =VLOOKUP(G68,$A$4:$B$20,2) -> 43040 | M68: =VLOOKUP(H68,$A$4:$B$20,2) -> 83768 | N68: =VLOOKUP(I68,$A$4:$B$20,2) -> 97051 | O68: =VLOOKUP(J68,$A$4:$B$20,2) -> 117461 | P68: =AVERAGE(K68:O68) -> 84876.8
F69: Ashleigh | G69: Chauncey | H69: Chin | I69: Kenia | J69: Pham | K69: 83064 | L69: 43040 | M69: 83768 | N69: 97051 | O69: 36016 | P69: 68587.8
F70: Ashleigh | G70: Chauncey | H70: Chin | I70: Kenia | J70: Reuben | K70: 83064 | L70: 43040 | M70: 83768 | N70: 97051 | O70: 33332 | P70: 68051
F71: Ashleigh | G71: Chauncey | H71: Chin | I71: Kenia | J71: Roslyn | K71: 83064 | L71: 43040 | M71: 83768 | N71: 97051 | O71: 41696 | P71: 69723.8
F72: Ashleigh | G72: Chauncey | H72: Chin | I72: Kenia | J72: Sheladawn | K72: 83064 | L72: 43040 | M72: 83768 | N72: 97051 | O72: 84732 | P72: 78331
F73: Ashleigh | G73: Chauncey | H73: Chin | I73: Kenia | J73: Tyrone | K73: 83064 | L73: 43040 | M73: 83768 | N73: 97051 | O73: 100893 | P73: 81563.2
F74: Ashleigh | G74: Chauncey | H74: Chin | I74: Kip | J74: Paige | K74: 83064 | L74: 43040 | M74: 83768 | N74: 50249 | O74: 117461 | P74: 75516.4
F75: Ashleigh | G75: Chauncey | H75: Chin | I75: Kip | J75: Pham | K75: 83064 | L75: 43040 | M75: 83768 | N75: 50249 | O75: 36016 | P75: 59227.4
F76: Ashleigh | G76: Chauncey | H76: Chin | I76: Kip | J76: Reuben | K76: 83064 | L76: 43040 | M76: 83768 | N76: 50249 | O76: 33332 | P76: 58690.6
F77: Ashleigh | G77: Chauncey | H77: Chin | I77: Kip | J77: Roslyn | K77: 83064 | L77: 43040 | M77: 83768 | N77: 50249 | O77: 41696 | P77: 60363.4
F78: Ashleigh | G78: Chauncey | H78: Chin | I78: Kip | J78: Sheladawn | K78: 83064 | L78: 43040 | M78: 83768 | N78: 50249 | O78: 84732 | P78: 68970.6
F79: Ashleigh | G79: Chauncey | H79: Chin | I79: Kip | J79: Tyrone | K79: 83064 | L79: 43040 | M79: 83768 | N79: 50249 | O79: 100893 | P79: 72202.8
F80: Ashleigh | G80: Chauncey | H80: Chin | I80: Paige | J80: Pham | K80: 83064 | L80: 43040 | M80: 83768 | N80: 117461 | O80: 36016 | P80: 72669.8
F81: Ashleigh | G81: Chauncey | H81: Chin | I81: Paige | J81: Reuben | K81: 83064 | L81: 43040 | M81: 83768 | N81: 117461 | O81: 33332 | P81: 72133
F82: Ashleigh | G82: Chauncey | H82: Chin | I82: Paige | J82: Roslyn | K82: 83064 | L82: 43040 | M82: 83768 | N82: 117461 | O82: 41696 | P82: 73805.8
F83: Ashleigh | G83: Chauncey | H83: Chin | I83: Paige | J83: Sheladawn | K83: 83064 | L83: 43040 | M83: 83768 | N83: 117461 | O83: 84732 | P83: 82413
F84: Ashleigh | G84: Chauncey | H84: Chin | I84: Paige | J84: Tyrone | K84: 83064 | L84: 43040 | M84: 83768 | N84: 117461 | O84: 100893 | P84: 85645.2
F85: Ashleigh | G85: Chauncey | H85: Chin | I85: Pham | J85: Reuben | K85: 83064 | L85: 43040 | M85: 83768 | N85: 36016 | O85: 33332 | P85: 55844
F86: Ashleigh | G86: Chauncey | H86: Chin | I86: Pham | J86: Roslyn | K86: 83064 | L86: 43040 | M86: 83768 | N86: 36016 | O86: 41696 | P86: 57516.8
F87: Ashleigh | G87: Chauncey | H87: Chin | I87: Pham | J87: Sheladawn | K87: 83064 | L87: 43040 | M87: 83768 | N87: 36016 | O87: 84732 | P87: 66124
F88: Ashleigh | G88: Chauncey | H88: Chin | I88: Pham | J88: Tyrone | K88: 83064 | L88: 43040 | M88: 83768 | N88: 36016 | O88: 100893 | P88: 69356.2
F89: Ashleigh | G89: Chauncey | H89: Chin | I89: Reuben | J89: Roslyn | K89: 83064 | L89: 43040 | M89: 83768 | N89: 33332 | O89: 41696 | P89: 56980
F90: Ashleigh | G90: Chauncey | H90: Chin | I90: Reuben | J90: Sheladawn | K90: 83064 | L90: 43040 | M90: 83768 | N90: 33332 | O90: 84732 | P90: 65587.2
F91: Ashleigh | G91: Chauncey | H91: Chin | I91: Reuben | J91: Tyrone | K91: 83064 | L91: 43040 | M91: 83768 | N91: 33332 | O91: 100893 | P91: 68819.4
F92: Ashleigh | G92: Chauncey | H92: Chin | I92: Roslyn | J92: Sheladawn | K92: 83064 | L92: 43040 | M92: 83768 | N92: 41696 | O92: 84732 | P92: 67260
F93: Ashleigh | G93: Chauncey | H93: Chin | I93: Roslyn | J93: Tyrone | K93: 83064 | L93: 43040 | M93: 83768 | N93: 41696 | O93: 100893 | P93: 70492.2
F94: Ashleigh | G94: Chauncey | H94: Chin | I94: Sheladawn | J94: Tyrone | K94: 83064 | L94: 43040 | M94: 83768 | N94: 84732 | O94: 100893 | P94: 79099.4
F95: Ashleigh | G95: Chauncey | H95: Delila | I95: Elina | J95: Garland | K95: 83064 | L95: 43040 | M95: 101112 | N95: 19868 | O95: 36021 | P95: 56621
F96: Ashleigh | G96: Chauncey | H96: Delila | I96: Elina | J96: Gigi | K96: 83064 | L96: 43040 | M96: 101112 | N96: 19868 | O96: 12030 | P96: 51822.8
F97: Ashleigh | G97: Chauncey | H97: Delila | I97: Elina | J97: Gregoria | K97: 83064 | L97: 43040 | M97: 101112 | N97: 19868 | O97: 65219 | P97: 62460.6
F98: Ashleigh | G98: Chauncey | H98: Delila | I98: Elina | J98: Kacey | K98: 83064 | L98: 43040 | M98: 101112 | N98: 19868 | O98: 94450 | P98: 68306.8
F99: Ashleigh | G99: Chauncey | H99: Delila | I99: Elina | J99: Kenia | K99: 83064 | L99: 43040 | M99: 101112 | N99: 19868 | O99: 97051 | P99: 68827
F100: Ashleigh | G100: Chauncey | H100: Delila | I100: Elina | J100: Kip | K100: 83064 | L100: 43040 | M100: 101112 | N100: 19868 | O100: 50249 | P100: 59466.6
F101: Ashleigh | G101: Chauncey | H101: Delila | I101: Elina | J101: Paige | K101: 83064 | L101: 43040 | M101: 101112 | N101: 19868 | O101: 117461 | P101: 72909
F102: Ashleigh | G102: Chauncey | H102: Delila | I102: Elina | J102: Pham | K102: 83064 | L102: 43040 | M102: 101112 | N102: 19868 | O102: 36016 | P102: 56620
F103: Ashleigh | G103: Chauncey | H103: Delila | I103: Elina | J103: Reuben | K103: 83064 | L103: 43040 | M103: 101112 | N103: 19868 | O103: 33332 | P103: 56083.2
F104: Ashleigh | G104: Chauncey | H104: Delila | I104: Elina | J104: Roslyn | K104: 83064 | L104: 43040 | M104: 101112 | N104: 19868 | O104: 41696 | P104: 57756
F105: Ashleigh | G105: Chauncey | H105: Delila | I105: Elina | J105: Sheladawn | K105: 83064 | L105: 43040 | M105: 101112 | N105: 19868 | O105: 84732 | P105: 66363.2
F106: Ashleigh | G106: Chauncey | H106: Delila | I106: Elina | J106: Tyrone | K106: 83064 | L106: 43040 | M106: 101112 | N106: 19868 | O106: 100893 | P106: 69595.4
F107: Ashleigh | G107: Chauncey | H107: Delila | I107: Garland | J107: Gigi | K107: 83064 | L107: 43040 | M107: 101112 | N107: 36021 | O107: 12030 | P107: 55053.4
F108: Ashleigh | G108: Chauncey | H108: Delila | I108: Garland | J108: Gregoria | K108: 83064 | L108: 43040 | M108: 101112 | N108: 36021 | O108: 65219 | P108: 65691.2
F109: Ashleigh | G109: Chauncey | H109: Delila | I109: Garland | J109: Kacey | K109: 83064 | L109: 43040 | M109: 101112 | N109: 36021 | O109: 94450 | P109: 71537.4
F110: Ashleigh | G110: Chauncey | H110: Delila | I110: Garland | J110: Kenia | K110: 83064 | L110: 43040 | M110: 101112 | N110: 36021 | O110: 97051 | P110: 72057.6
F111: Ashleigh | G111: Chauncey | H111: Delila | I111: Garland | J111: Kip | K111: 83064 | L111: 43040 | M111: 101112 | N111: 36021 | O111: 50249 | P111: 62697.2
F112: Ashleigh | G112: Chauncey | H112: Delila | I112: Garland | J112: Paige | K112: 83064 | L112: 43040 | M112: 101112 | N112: 36021 | O112: 117461 | P112: 76139.6
F113: Ashleigh | G113: Chauncey | H113: Delila | I113: Garland | J113: Pham | K113: 83064 | L113: 43040 | M113: 101112 | N113: 36021 | O113: 36016 | P113: 59850.6
F114: Ashleigh | G114: Chauncey | H114: Delila | I114: Garland | J114: Reuben | K114: 83064 | L114: 43040 | M114: 101112 | N114: 36021 | O114: 33332 | P114: 59313.8
F115: Ashleigh | G115: Chauncey | H115: Delila | I115: Garland | J115: Roslyn | K115: 83064 | L115: 43040 | M115: 101112 | N115: 36021 | O115: 41696 | P115: 60986.6
F116: Ashleigh | G116: Chauncey | H116: Delila | I116: Garland | J116: Sheladawn | K116: 83064 | L116: 43040 | M116: 101112 | N116: 36021 | O116: 84732 | P116: 69593.8
F117: Ashleigh | G117: Chauncey | H117: Delila | I117: Garland | J117: Tyrone | K117: 83064 | L117: 43040 | M117: 101112 | N117: 36021 | O117: 100893 | P117: 72826
F118: Ashleigh | G118: Chauncey | H118: Delila | I118: Gigi | J118: Gregoria | K118: 83064 | L118: 43040 | M118: 101112 | N118: 12030 | O118: 65219 | P118: 60893
F119: Ashleigh | G119: Chauncey | H119: Delila | I119: Gigi | J119: Kacey | K119: 83064 | L119: 43040 | M119: 101112 | N119: 12030 | O119: 94450 | P119: 66739.2
F120: Ashleigh | G120: Chauncey | H120: Delila | I120: Gigi | J120: Kenia | K120: 83064 | L120: 43040 | M120: 101112 | N120: 12030 | O120: 97051 | P120: 67259.4
F121: Ashleigh | G121: Chauncey | H121: Delila | I121: Gigi | J121: Kip | K121: 83064 | L121: 43040 | M121: 101112 | N121: 12030 | O121: 50249 | P121: 57899
F122: Ashleigh | G122: Chauncey | H122: Delila | I122: Gigi | J122: Paige | K122: 83064 | L122: 43040 | M122: 101112 | N122: 12030 | O122: 117461 | P122: 71341.4
F123: Ashleigh | G123: Chauncey | H123: Delila | I123: Gigi | J123: Pham | K123: 83064 | L123: 43040 | M123: 101112 | N123: 12030 | O123: 36016 | P123: 55052.4
F124: Ashleigh | G124: Chauncey | H124: Delila | I124: Gigi | J124: Reuben | K124: 83064 | L124: 43040 | M124: 101112 | N124: 12030 | O124: 33332 | P124: 54515.6
F125: Ashleigh | G125: Chauncey | H125: Delila | I125: Gigi | J125: Roslyn | K125: 83064 | L125: 43040 | M125: 101112 | N125: 12030 | O125: 41696 | P125: 56188.4
F126: Ashleigh | G126: Chauncey | H126: Delila | I126: Gigi | J126: Sheladawn | K126: 83064 | L126: 43040 | M126: 101112 | N126: 12030 | O126: 84732 | P126: 64795.6
F127: Ashleigh | G127: Chauncey | H127: Delila | I127: Gigi | J127: Tyrone | K127: 83064 | L127: 43040 | M127: 101112 | N127: 12030 | O127: 100893 | P127: 68027.8
F128: Ashleigh | G128: Chauncey | H128: Delila | I128: Gregoria | J128: Kacey | K128: 83064 | L128: 43040 | M128: 101112 | N128: 65219 | O128: 94450 | P128: 77377
F129: Ashleigh | G129: Chauncey | H129: Delila | I129: Gregoria | J129: Kenia | K129: 83064 | L129: 43040 | M129: 101112 | N129: 65219 | O129: 97051 | P129: 77897.2
F130: Ashleigh | G130: Chauncey | H130: Delila | I130: Gregoria | J130: Kip | K130: 83064 | L130: 43040 | M130: 101112 | N130: 65219 | O130: 50249 | P130: 68536.8
F131: Ashleigh | G131: Chauncey | H131: Delila | I131: Gregoria | J131: Paige | K131: 83064 | L131: 43040 | M131: 101112 | N131: 65219 | O131: 117461 | P131: 81979.2
F132: Ashleigh | G132: Chauncey | H132: Delila | I132: Gregoria | J132: Pham | K132: =VLOOKUP(F132,$A$4:$B$20,2) -> 83064 | L132: =VLOOKUP(G132,$A$4:$B$20,2) -> 43040 | M132: =VLOOKUP(H132,$A$4:$B$20,2) -> 101112 | N132: =VLOOKUP(I132,$A$4:$B$20,2) -> 65219 | O132: =VLOOKUP(J132,$A$4:$B$20,2) -> 36016 | P132: =AVERAGE(K132:O132) -> 65690.2
F133: Ashleigh | G133: Chauncey | H133: Delila | I133: Gregoria | J133: Reuben | K133: 83064 | L133: 43040 | M133: 101112 | N133: 65219 | O133: 33332 | P133: 65153.4
F134: Ashleigh | G134: Chauncey | H134: Delila | I134: Gregoria | J134: Roslyn | K134: 83064 | L134: 43040 | M134: 101112 | N134: 65219 | O134: 41696 | P134: 66826.2
F135: Ashleigh | G135: Chauncey | H135: Delila | I135: Gregoria | J135: Sheladawn | K135: 83064 | L135: 43040 | M135: 101112 | N135: 65219 | O135: 84732 | P135: 75433.4
F136: Ashleigh | G136: Chauncey | H136: Delila | I136: Gregoria | J136: Tyrone | K136: 83064 | L136: 43040 | M136: 101112 | N136: 65219 | O136: 100893 | P136: 78665.6
F137: Ashleigh | G137: Chauncey | H137: Delila | I137: Kacey | J137: Kenia | K137: 83064 | L137: 43040 | M137: 101112 | N137: 94450 | O137: 97051 | P137: 83743.4
F138: Ashleigh | G138: Chauncey | H138: Delila | I138: Kacey | J138: Kip | K138: 83064 | L138: 43040 | M138: 101112 | N138: 94450 | O138: 50249 | P138: 74383
F139: Ashleigh | G139: Chauncey | H139: Delila | I139: Kacey | J139: Paige | K139: 83064 | L139: 43040 | M139: 101112 | N139: 94450 | O139: 117461 | P139: 87825.4
F140: Ashleigh | G140: Chauncey | H140: Delila | I140: Kacey | J140: Pham | K140: 83064 | L140: 43040 | M140: 101112 | N140: 94450 | O140: 36016 | P140: 71536.4
F141: Ashleigh | G141: Chauncey | H141: Delila | I141: Kacey | J141: Reuben | K141: 83064 | L141: 43040 | M141: 101112 | N141: 94450 | O141: 33332 | P141: 70999.6
F142: Ashleigh | G142: Chauncey | H142: Delila | I142: Kacey | J142: Roslyn | K142: 83064 | L142: 43040 | M142: 101112 | N142: 94450 | O142: 41696 | P142: 72672.4
F143: Ashleigh | G143: Chauncey | H143: Delila | I143: Kacey | J143: Sheladawn | K143: 83064 | L143: 43040 | M143: 101112 | N143: 94450 | O143: 84732 | P143: 81279.6
F144: Ashleigh | G144: Chauncey | H144: Delila | I144: Kacey | J144: Tyrone | K144: 83064 | L144: 43040 | M144: 101112 | N144: 94450 | O144: 100893 | P144: 84511.8
F145: Ashleigh | G145: Chauncey | H145: Delila | I145: Kenia | J145: Kip | K145: 83064 | L145: 43040 | M145: 101112 | N145: 97051 | O145: 50249 | P145: 74903.2
F146: Ashleigh | G146: Chauncey | H146: Delila | I146: Kenia | J146: Paige | K146: 83064 | L146: 43040 | M146: 101112 | N146: 97051 | O146: 117461 | P146: 88345.6
F147: Ashleigh | G147: Chauncey | H147: Delila | I147: Kenia | J147: Pham | K147: 83064 | L147: 43040 | M147: 101112 | N147: 97051 | O147: 36016 | P147: 72056.6
F148: Ashleigh | G148: Chauncey | H148: Delila | I148: Kenia | J148: Reuben | K148: 83064 | L148: 43040 | M148: 101112 | N148: 97051 | O148: 33332 | P148: 71519.8
F149: Ashleigh | G149: Chauncey | H149: Delila | I149: Kenia | J149: Roslyn | K149: 83064 | L149: 43040 | M149: 101112 | N149: 97051 | O149: 41696 | P149: 73192.6
F150: Ashleigh | G150: Chauncey | H150: Delila | I150: Kenia | J150: Sheladawn | K150: 83064 | L150: 43040 | M150: 101112 | N150: 97051 | O150: 84732 | P150: 81799.8
F151: Ashleigh | G151: Chauncey | H151: Delila | I151: Kenia | J151: Tyrone | K151: 83064 | L151: 43040 | M151: 101112 | N151: 97051 | O151: 100893 | P151: 85032
F152: Ashleigh | G152: Chauncey | H152: Delila | I152: Kip | J152: Paige | K152: 83064 | L152: 43040 | M152: 101112 | N152: 50249 | O152: 117461 | P152: 78985.2
F153: Ashleigh | G153: Chauncey | H153: Delila | I153: Kip | J153: Pham | K153: 83064 | L153: 43040 | M153: 101112 | N153: 50249 | O153: 36016 | P153: 62696.2
F154: Ashleigh | G154: Chauncey | H154: Delila | I154: Kip | J154: Reuben | K154: 83064 | L154: 43040 | M154: 101112 | N154: 50249 | O154: 33332 | P154: 62159.4
F155: Ashleigh | G155: Chauncey | H155: Delila | I155: Kip | J155: Roslyn | K155: 83064 | L155: 43040 | M155: 101112 | N155: 50249 | O155: 41696 | P155: 63832.2
F156: Ashleigh | G156: Chauncey | H156: Delila | I156: Kip | J156: Sheladawn | K156: 83064 | L156: 43040 | M156: 101112 | N156: 50249 | O156: 84732 | P156: 72439.4
F157: Ashleigh | G157: Chauncey | H157: Delila | I157: Kip | J157: Tyrone | K157: 83064 | L157: 43040 | M157: 101112 | N157: 50249 | O157: 100893 | P157: 75671.6
F158: Ashleigh | G158: Chauncey | H158: Delila | I158: Paige | J158: Pham | K158: 83064 | L158: 43040 | M158: 101112 | N158: 117461 | O158: 36016 | P158: 76138.6
F159: Ashleigh | G159: Chauncey | H159: Delila | I159: Paige | J159: Reuben | K159: 83064 | L159: 43040 | M159: 101112 | N159: 117461 | O159: 33332 | P159: 75601.8
F160: Ashleigh | G160: Chauncey | H160: Delila | I160: Paige | J160: Roslyn | K160: 83064 | L160: 43040 | M160: 101112 | N160: 117461 | O160: 41696 | P160: 77274.6
F161: Ashleigh | G161: Chauncey | H161: Delila | I161: Paige | J161: Sheladawn | K161: 83064 | L161: 43040 | M161: 101112 | N161: 117461 | O161: 84732 | P161: 85881.8
F162: Ashleigh | G162: Chauncey | H162: Delila | I162: Paige | J162: Tyrone | K162: 83064 | L162: 43040 | M162: 101112 | N162: 117461 | O162: 100893 | P162: 89114
F163: Ashleigh | G163: Chauncey | H163: Delila | I163: Pham | J163: Reuben | K163: 83064 | L163: 43040 | M163: 101112 | N163: 36016 | O163: 33332 | P163: 59312.8
F164: Ashleigh | G164: Chauncey | H164: Delila | I164: Pham | J164: Roslyn | K164: 83064 | L164: 43040 | M164: 101112 | N164: 36016 | O164: 41696 | P164: 60985.6
F165: Ashleigh | G165: Chauncey | H165: Delila | I165: Pham | J165: Sheladawn | K165: 83064 | L165: 43040 | M165: 101112 | N165: 36016 | O165: 84732 | P165: 69592.8
F166: Ashleigh | G166: Chauncey | H166: Delila | I166: Pham | J166: Tyrone | K166: 83064 | L166: 43040 | M166: 101112 | N166: 36016 | O166: 100893 | P166: 72825
F167: Ashleigh | G167: Chauncey | H167: Delila | I167: Reuben | J167: Roslyn | K167: 83064 | L167: 43040 | M167: 101112 | N167: 33332 | O167: 41696 | P167: 60448.8
F168: Ashleigh | G168: Chauncey | H168: Delila | I168: Reuben | J168: Sheladawn | K168: 83064 | L168: 43040 | M168: 101112 | N168: 33332 | O168: 84732 | P168: 69056
F169: Ashleigh | G169: Chauncey | H169: Delila | I169: Reuben | J169: Tyrone | K169: 83064 | L169: 43040 | M169: 101112 | N169: 33332 | O169: 100893 | P169: 72288.2
F170: Ashleigh | G170: Chauncey | H170: Delila | I170: Roslyn | J170: Sheladawn | K170: 83064 | L170: 43040 | M170: 101112 | N170: 41696 | O170: 84732 | P170: 70728.8
F171: Ashleigh | G171: Chauncey | H171: Delila | I171: Roslyn | J171: Tyrone | K171: 83064 | L171: 43040 | M171: 101112 | N171: 41696 | O171: 100893 | P171: 73961
F172: Ashleigh | G172: Chauncey | H172: Delila | I172: Sheladawn | J172: Tyrone | K172: 83064 | L172: 43040 | M172: 101112 | N172: 84732 | O172: 100893 | P172: 82568.2
F173: Ashleigh | G173: Chauncey | H173: Elina | I173: Garland | J173: Gigi | K173: 83064 | L173: 43040 | M173: 19868 | N173: 36021 | O173: 12030 | P173: 38804.6
F174: Ashleigh | G174: Chauncey | H174: Elina | I174: Garland | J174: Gregoria | K174: 83064 | L174: 43040 | M174: 19868 | N174: 36021 | O174: 65219 | P174: 49442.4
F175: Ashleigh | G175: Chauncey | H175: Elina | I175: Garland | J175: Kacey | K175: 83064 | L175: 43040 | M175: 19868 | N175: 36021 | O175: 94450 | P175: 55288.6
F176: Ashleigh | G176: Chauncey | H176: Elina | I176: Garland | J176: Kenia | K176: 83064 | L176: 43040 | M176: 19868 | N176: 36021 | O176: 97051 | P176: 55808.8
F177: Ashleigh | G177: Chauncey | H177: Elina | I177: Garland | J177: Kip | K177: 83064 | L177: 43040 | M177: 19868 | N177: 36021 | O177: 50249 | P177: 46448.4
F178: Ashleigh | G178: Chauncey | H178: Elina | I178: Garland | J178: Paige | K178: 83064 | L178: 43040 | M178: 19868 | N178: 36021 | O178: 117461 | P178: 59890.8
F179: Ashleigh | G179: Chauncey | H179: Elina | I179: Garland | J179: Pham | K179: 83064 | L179: 43040 | M179: 19868 | N179: 36021 | O179: 36016 | P179: 43601.8
F180: Ashleigh | G180: Chauncey | H180: Elina | I180: Garland | J180: Reuben | K180: 83064 | L180: 43040 | M180: 19868 | N180: 36021 | O180: 33332 | P180: 43065
F181: Ashleigh | G181: Chauncey | H181: Elina | I181: Garland | J181: Roslyn | K181: 83064 | L181: 43040 | M181: 19868 | N181: 36021 | O181: 41696 | P181: 44737.8
F182: Ashleigh | G182: Chauncey | H182: Elina | I182: Garland | J182: Sheladawn | K182: 83064 | L182: 43040 | M182: 19868 | N182: 36021 | O182: 84732 | P182: 53345
F183: Ashleigh | G183: Chauncey | H183: Elina | I183: Garland | J183: Tyrone | K183: 83064 | L183: 43040 | M183: 19868 | N183: 36021 | O183: 100893 | P183: 56577.2
F184: Ashleigh | G184: Chauncey | H184: Elina | I184: Gigi | J184: Gregoria | K184: 83064 | L184: 43040 | M184: 19868 | N184: 12030 | O184: 65219 | P184: 44644.2
F185: Ashleigh | G185: Chauncey | H185: Elina | I185: Gigi | J185: Kacey | K185: 83064 | L185: 43040 | M185: 19868 | N185: 12030 | O185: 94450 | P185: 50490.4
F186: Ashleigh | G186: Chauncey | H186: Elina | I186: Gigi | J186: Kenia | K186: 83064 | L186: 43040 | M186: 19868 | N186: 12030 | O186: 97051 | P186: 51010.6
F187: Ashleigh | G187: Chauncey | H187: Elina | I187: Gigi | J187: Kip | K187: 83064 | L187: 43040 | M187: 19868 | N187: 12030 | O187: 50249 | P187: 41650.2
F188: Ashleigh | G188: Chauncey | H188: Elina | I188: Gigi | J188: Paige | K188: 83064 | L188: 43040 | M188: 19868 | N188: 12030 | O188: 117461 | P188: 55092.6
F189: Ashleigh | G189: Chauncey | H189: Elina | I189: Gigi | J189: Pham | K189: 83064 | L189: 43040 | M189: 19868 | N189: 12030 | O189: 36016 | P189: 38803.6
F190: Ashleigh | G190: Chauncey | H190: Elina | I190: Gigi | J190: Reuben | K190: 83064 | L190: 43040 | M190: 19868 | N190: 12030 | O190: 33332 | P190: 38266.8
F191: Ashleigh | G191: Chauncey | H191: Elina | I191: Gigi | J191: Roslyn | K191: 83064 | L191: 43040 | M191: 19868 | N191: 12030 | O191: 41696 | P191: 39939.6
F192: Ashleigh | G192: Chauncey | H192: Elina | I192: Gigi | J192: Sheladawn | K192: 83064 | L192: 43040 | M192: 19868 | N192: 12030 | O192: 84732 | P192: 48546.8
F193: Ashleigh | G193: Chauncey | H193: Elina | I193: Gigi | J193: Tyrone | K193: 83064 | L193: 43040 | M193: 19868 | N193: 12030 | O193: 100893 | P193: 51779
F194: Ashleigh | G194: Chauncey | H194: Elina | I194: Gregoria | J194: Kacey | K194: 83064 | L194: 43040 | M194: 19868 | N194: 65219 | O194: 94450 | P194: 61128.2
F195: Ashleigh | G195: Chauncey | H195: Elina | I195: Gregoria | J195: Kenia | K195: 83064 | L195: 43040 | M195: 19868 | N195: 65219 | O195: 97051 | P195: 61648.4
F196: Ashleigh | G196: Chauncey | H196: Elina | I196: Gregoria | J196: Kip | K196: =VLOOKUP(F196,$A$4:$B$20,2) -> 83064 | L196: =VLOOKUP(G196,$A$4:$B$20,2) -> 43040 | M196: =VLOOKUP(H196,$A$4:$B$20,2) -> 19868 | N196: =VLOOKUP(I196,$A$4:$B$20,2) -> 65219 | O196: =VLOOKUP(J196,$A$4:$B$20,2) -> 50249 | P196: =AVERAGE(K196:O196) -> 52288
F197: Ashleigh | G197: Chauncey | H197: Elina | I197: Gregoria | J197: Paige | K197: 83064 | L197: 43040 | M197: 19868 | N197: 65219 | O197: 117461 | P197: 65730.4
F198: Ashleigh | G198: Chauncey | H198: Elina | I198: Gregoria | J198: Pham | K198: 83064 | L198: 43040 | M198: 19868 | N198: 65219 | O198: 36016 | P198: 49441.4
F199: Ashleigh | G199: Chauncey | H199: Elina | I199: Gregoria | J199: Reuben | K199: 83064 | L199: 43040 | M199: 19868 | N199: 65219 | O199: 33332 | P199: 48904.6
F200: Ashleigh | G200: Chauncey | H200: Elina | I200: Gregoria | J200: Roslyn | K200: 83064 | L200: 43040 | M200: 19868 | N200: 65219 | O200: 41696 | P200: 50577.4
... 5991 more rows

Sheet E(Xbar)(4)
A1: ="An insurance company claims that the average cost per year for a policy is "&DOLLAR(B7,0)&"." -> An insurance company claims that the average cost per year for a policy is $822. | I1: Sample
A2: ="The standard deviation for the population is "&DOLLAR(B8,0)&"." -> The standard deviation for the population is $202. | I2: 716
A3: ="What is the probability of getting a sample mean within +/- "&DOLLAR(B8/SQRT(COUNT(I2:I301)))*2&"?" -> What is the probability of getting a sample mean within +/- 23.32? | I3: 926
A4: If you take a random sample and get a sample mean of | I4: 722
A5: =DOLLAR(AVERAGE(I2:I301),0)&" (n = "&COUNT(I2:I301)&"), is the claim reasonable?" -> $850 (n = 300), is the claim reasonable? | I5: 810
I6: 873
A7: Mew | B7: 822 | C7: Annual Auto Insurance Cost | I7: 873
A8: Sigma | B8: 202 | I8: 1074
A9: Margin of error = Standard Error * 2 | I9: 1135
A10: n | I10: 763
A11: N | B11: 25000 | I11: 1074
A12: n/N | C12: =IF(B12="","","n/N <= 0.05, don't need SQRT((N-n)/(N-1))") ->  | I12: 675
A13: Sample Xbar - Point Estimate of Population Parameter | I13: 824
A14: Standard Error | I14: 988
A15: Low Xbar | I15: 873
A16: High Xbar | I16: 824
A17: ="P("&DOLLAR(B7-B8/SQRT(COUNT(I2:I301))*2)&" <= Xbar <= "&DOLLAR(B7+B8/SQRT(COUNT(I2:I301))*2)&") = "&IF(ISNUMBER(B17),ROUND(B17,4),"") -> P($798.68 <= Xbar <= $845.32) = | I17: 873
A18: Conclusion: | I18: 622
A19: Xbar is only a point estimate of μ. The difference is always Sampling Error (Xbar - μ). | I19: 1074
A20: Is our sampling error acceptable, or NOT acceptable? | I20: 867
A21: Statements we are allowed to make: | I21: 824
A22: We know Mew, μ, and we make a statement about the probability that Xbar lies within an interval. | I22: 722
A23: ="We are "&TEXT($B$17,"0%")&" sure that our Xbar will lie between "&DOLLAR($B$15)&" and "&DOLLAR($B$16)&"." -> We are 0% sure that our Xbar will lie between $0.00 and $0.00. | I23: 703
A24: ="We run a "&TEXT(1-$B$17,"0%")&" risk that our Xbar will lie OUTSIDE the interval "&DOLLAR($B$15)&" and "&DOLLAR($B$16)&"." -> We run a 100% risk that our Xbar will lie OUTSIDE the interval $0.00 and $0.00. | I24: 824
A25: ="The probability is "&TEXT($B$17,"0%")&" that our Xbar lies with in +/- "&DOLLAR(B9)&"." -> The probability is 0% that our Xbar lies with in +/- $0.00. | I25: 824
A26: ="The probability is "&TEXT($B$17,"0%")&" that our Xbar lies with in +/- 2 standard deviations (Standard Error because it is the SDOXbar)" -> The probability is 0% that our Xbar lies with in +/- 2 standard deviations (Standard Error because it is the SDOXbar) | I26: 424
A27: ="Our Xbar of "&DOLLAR(B13)&" is outside our interval and because the chances of this are so small ("&TEXT(1-B17,"0%")&"), we say that it" -> Our Xbar of $0.00 is outside our interval and because the chances of this are so small (100%), we say that it | I27: 962
A28: ="does not seem reasonable that we could have taken a sample and gotten "&DOLLAR(B13)&". Our sampling error is not acceptable." -> does not seem reasonable that we could have taken a sample and gotten $0.00. Our sampling error is not acceptable. | I28: 1002
A29: ="We are "&TEXT(B17,"0%")&" sure that the original claim of "&DOLLAR(B7)&" does not seem reasonable." -> We are 0% sure that the original claim of $822.00 does not seem reasonable. | I29: 926
I30: 988
I31: 926
I32: 1105
I33: 761
E34: 761.5 | F34: =$B$7-2*$B$8/SQRT(COUNT($I$2:$I$301)) -> 798.6750491 | I34: 926
E35: 886.5 | F35: =$B$7+2*$B$8/SQRT(COUNT($I$2:$I$301)) -> 845.3249509 | I35: 886
B36: Xbar | C36: P(Xbar) | D36: =A17 -> P($798.68 <= Xbar <= $845.32) = | I36: 1035
B37: 761.5 | C37: =_xlfn.NORM.DIST(B37,$B$7,$B$8/SQRT(COUNT($I$2:$I$301)),0) -> 4.903177405e-08 | D37: =IF(AND(B37>=$F$34,B37<=$F$35),C37,"") ->  | I37: 775
B38: 761.75 | C38: =_xlfn.NORM.DIST(B38,$B$7,$B$8/SQRT(COUNT($I$2:$I$301)),0) -> 5.478635213e-08 | D38: =IF(AND(B38>=$F$34,B38<=$F$35),C38,"") ->  | I38: 724
B39: 762 | C39: 6.118818875e-08 | I39: 671
B40: 762.25 | C40: 6.830669091e-08 | I40: 905
B41: 762.5 | C41: 7.621831287e-08 | I41: 915
B42: 762.75 | C42: 8.500722742e-08 | I42: 516
B43: 763 | C43: 9.476605625e-08 | I43: 926
B44: 763.25 | C44: 1.055966643e-07 | I44: 715
B45: 763.5 | C45: 1.176110228e-07 | I45: 842
B46: 763.75 | C46: 1.309321471e-07 | I46: 618
B47: 764 | C47: 1.456951144e-07 | I47: 988
B48: 764.25 | C48: 1.620481671e-07 | I48: 872
B49: 764.5 | C49: 1.801539105e-07 | I49: 769
B50: 764.75 | C50: 2.001906084e-07 | I50: 819
B51: 765 | C51: 2.223535876e-07 | I51: 549
B52: 765.25 | C52: 2.468567565e-07 | I52: 843
B53: 765.5 | C53: 2.739342474e-07 | I53: 921
B54: 765.75 | C54: 3.038421918e-07 | I54: 1074
B55: 766 | C55: 3.368606363e-07 | I55: 926
B56: 766.25 | C56: 3.732956119e-07 | I56: 824
B57: 766.5 | C57: 4.134813644e-07 | I57: 1030
B58: 766.75 | C58: 4.57782759e-07 | I58: 870
B59: 767 | C59: 5.065978701e-07 | I59: 1074
B60: 767.25 | C60: 5.603607689e-07 | I60: 824
B61: 767.5 | C61: 6.195445218e-07 | I61: 1074
B62: 767.75 | C62: 6.846644139e-07 | I62: 601
B63: 768 | C63: 7.562814108e-07 | I63: 824
B64: 768.25 | C64: 8.350058756e-07 | I64: 873
B65: 768.5 | C65: 9.215015562e-07 | I65: 1074
B66: 768.75 | C66: 1.016489859e-06 | I66: 673
B67: 769 | C67: 1.120754427e-06 | I67: 678
B68: 769.25 | C68: 1.235146044e-06 | I68: 722
B69: 769.5 | C69: 1.360587874e-06 | I69: 722
B70: 769.75 | C70: 1.498081069e-06 | I70: 838
B71: 770 | C71: 1.648710758e-06 | I71: 476
B72: 770.25 | C72: 1.813652435e-06 | I72: 988
B73: 770.5 | C73: 1.994178779e-06 | I73: 745
B74: 770.75 | C74: 2.191666923e-06 | I74: 736
B75: 771 | C75: 2.407606193e-06 | I75: 873
B76: 771.25 | C76: 2.643606347e-06 | I76: 905
B77: 771.5 | C77: 2.901406341e-06 | I77: 988
B78: 771.75 | C78: 3.182883637e-06 | I78: 988
B79: 772 | C79: 3.490064095e-06 | I79: 1074
B80: 772.25 | C80: 3.82513247e-06 | I80: 1184
B81: 772.5 | C81: 4.190443532e-06 | I81: 775
B82: 772.75 | C82: 4.588533864e-06 | I82: 824
B83: 773 | C83: 5.022134336e-06 | I83: 926
B84: 773.25 | C84: 5.494183309e-06 | I84: 588
B85: 773.5 | C85: 6.007840591e-06 | I85: 761
B86: 773.75 | C86: 6.56650217e-06 | I86: 739
B87: 774 | C87: 7.173815765e-06 | I87: 907
B88: 774.25 | C88: 7.833697223e-06 | I88: 722
B89: 774.5 | C89: 8.550347789e-06 | I89: 1108
B90: 774.75 | C90: 9.328272284e-06 | I90: 722
B91: 775 | C91: 1.017229823e-05 | I91: 1074
B92: 775.25 | C92: 1.108759591e-05 | I92: 1074
B93: 775.5 | C93: 1.20796995e-05 | I93: 824
B94: 775.75 | C94: 1.315452915e-05 | I94: 532
B95: 776 | C95: 1.431841416e-05 | I95: 824
B96: 776.25 | C96: 1.557811726e-05 | I96: 760
B97: 776.5 | C97: 1.694085997e-05 | I97: 926
B98: 776.75 | C98: 1.841434911e-05 | I98: 1074
B99: 777 | C99: 2.000680448e-05 | I99: 1074
B100: 777.25 | C100: 2.172698772e-05 | I100: 873
B101: 777.5 | C101: 2.35842324e-05 | I101: 1074
B102: 777.75 | C102: =_xlfn.NORM.DIST(B102,$B$7,$B$8/SQRT(COUNT($I$2:$I$301)),0) -> 2.558847526e-05 | D102: =IF(AND(B102>=$F$34,B102<=$F$35),C102,"") ->  | I102: 910
B103: 778 | C103: 2.775028876e-05 | I103: 528
B104: 778.25 | C104: 3.008091487e-05 | I104: 873
B105: 778.5 | C105: 3.259230008e-05 | I105: 686
B106: 778.75 | C106: 3.529713172e-05 | I106: 390
B107: 779 | C107: 3.820887552e-05 | I107: 873
B108: 779.25 | C108: 4.134181445e-05 | I108: 852
B109: 779.5 | C109: 4.47110888e-05 | I109: 1074
B110: 779.75 | C110: 4.833273755e-05 | I110: 692
B111: 780 | C111: 5.222374089e-05 | I111: 816
B112: 780.25 | C112: 5.640206407e-05 | I112: 873
B113: 780.5 | C113: 6.088670232e-05 | I113: 996
B114: 780.75 | C114: 6.569772695e-05 | I114: 717
B115: 781 | C115: 7.085633265e-05 | I115: 926
B116: 781.25 | C116: 7.638488568e-05 | I116: 775
B117: 781.5 | C117: 8.230697321e-05 | I117: 1074
B118: 781.75 | C118: 8.864745358e-05 | I118: 806
B119: 782 | C119: 9.543250734e-05 | I119: 722
B120: 782.25 | C120: 0.0001026896892 | I120: 775
B121: 782.5 | C121: 0.0001104479808 | I121: 836
B122: 782.75 | C122: 0.0001187378435 | I122: 743
B123: 783 | C123: 0.0001275912727 | I123: 885
B124: 783.25 | C124: 0.0001370418515 | I124: 991
B125: 783.5 | C125: 0.0001471248054 | I125: 1226
B126: 783.75 | C126: 0.0001578770565 | I126: 763
B127: 784 | C127: 0.0001693372785 | I127: 673
B128: 784.25 | C128: 0.0001815459507 | I128: 951
B129: 784.5 | C129: 0.000194545412 | I129: 771
B130: 784.75 | C130: 0.0002083799145 | I130: 926
B131: 785 | C131: 0.0002230956763 | I131: 758
B132: 785.25 | C132: 0.0002387409332 | I132: 988
B133: 785.5 | C133: 0.0002553659898 | I133: 628
B134: 785.75 | C134: 0.0002730232686 | I134: 824
B135: 786 | C135: 0.0002917673577 | I135: 1074
B136: 786.25 | C136: 0.0003116550574 | I136: 626
B137: 786.5 | C137: 0.0003327454235 | I137: 1074
B138: 786.75 | C138: 0.0003550998092 | I138: 954
B139: 787 | C139: 0.0003787819038 | I139: 788
B140: 787.25 | C140: 0.000403857769 | I140: 1020
B141: 787.5 | C141: 0.0004303958715 | I141: 988
B142: 787.75 | C142: 0.0004584671124 | I142: 1010
B143: 788 | C143: 0.0004881448524 | I143: 605
B144: 788.25 | C144: 0.0005195049333 | I144: 775
B145: 788.5 | C145: 0.0005526256947 | I145: 775
B146: 788.75 | C146: 0.0005875879859 | I146: 926
B147: 789 | C147: 0.0006244751725 | I147: 722
B148: 789.25 | C148: 0.0006633731379 | I148: 1074
B149: 789.5 | C149: 0.0007043702784 | I149: 500
B150: 789.75 | C150: 0.0007475574923 | I150: 952
B151: 790 | C151: 0.0007930281626 | I151: 740
B152: 790.25 | C152: 0.000840878132 | I152: 824
B153: 790.5 | C153: 0.0008912056718 | I153: 775
B154: 790.75 | C154: 0.0009441114417 | I154: 1232
B155: 791 | C155: 0.0009996984431 | I155: 926
B156: 791.25 | C156: 0.001058071963 | I156: 765
B157: 791.5 | C157: 0.001119339507 | I157: 460
B158: 791.75 | C158: 0.001183610733 | I158: 436
B159: 792 | C159: 0.001250997357 | I159: 601
B160: 792.25 | C160: 0.001321613072 | I160: 967
B161: 792.5 | C161: 0.001395573437 | I161: 988
B162: 792.75 | C162: 0.001472995769 | I162: 776
B163: 793 | C163: 0.001553999018 | I163: 706
B164: 793.25 | C164: 0.001638703632 | I164: 571
B165: 793.5 | C165: 0.001727231414 | I165: 906
B166: 793.75 | C166: =_xlfn.NORM.DIST(B166,$B$7,$B$8/SQRT(COUNT($I$2:$I$301)),0) -> 0.001819705366 | D166: =IF(AND(B166>=$F$34,B166<=$F$35),C166,"") ->  | I166: 769
B167: 794 | C167: 0.001916249519 | I167: 616
B168: 794.25 | C168: 0.00201698876 | I168: 1074
B169: 794.5 | C169: 0.002122048632 | I169: 873
B170: 794.75 | C170: 0.002231555144 | I170: 557
B171: 795 | C171: 0.002345634546 | I171: 873
B172: 795.25 | C172: 0.002464413113 | I172: 1268
B173: 795.5 | C173: 0.002588016903 | I173: 1074
B174: 795.75 | C174: 0.002716571511 | I174: 926
B175: 796 | C175: 0.002850201805 | I175: 753
B176: 796.25 | C176: 0.002989031662 | I176: 988
B177: 796.5 | C177: 0.00313318368 | I177: 1050
B178: 796.75 | C178: 0.003282778888 | I178: 710
B179: 797 | C179: 0.003437936442 | I179: 403
B180: 797.25 | C180: 0.003598773311 | I180: 775
B181: 797.5 | C181: 0.003765403952 | I181: 926
B182: 797.75 | C182: 0.003937939984 | I182: 824
B183: 798 | C183: 0.004116489837 | I183: 886
B184: 798.25 | C184: 0.004301158411 | I184: 1021
B185: 798.5 | C185: 0.004492046713 | I185: 926
B186: 798.75 | C186: 0.004689251495 | D186: 0.004689251495 | I186: 873
B187: 799 | C187: 0.004892864884 | D187: 0.004892864884 | I187: 722
B188: 799.25 | C188: 0.005102974005 | D188: 0.005102974005 | I188: 1074
B189: 799.5 | C189: 0.0053196606 | D189: 0.0053196606 | I189: 687
B190: 799.75 | C190: 0.005543000647 | D190: 0.005543000647 | I190: 873
B191: 800 | C191: 0.005773063965 | D191: 0.005773063965 | I191: 1081
B192: 800.25 | C192: 0.006009913833 | D192: 0.006009913833 | I192: 562
B193: 800.5 | C193: 0.006253606595 | D193: 0.006253606595 | I193: 577
B194: 800.75 | C194: 0.006504191272 | D194: 0.006504191272 | I194: 1074
B195: 801 | C195: 0.006761709171 | D195: 0.006761709171 | I195: 759
B196: 801.25 | C196: 0.0070261935 | D196: 0.0070261935 | I196: 988
B197: 801.5 | C197: 0.007297668987 | D197: 0.007297668987 | I197: 1032
B198: 801.75 | C198: 0.007576151499 | D198: 0.007576151499 | I198: 705
B199: 802 | C199: 0.007861647669 | D199: 0.007861647669 | I199: 1090
B200: 802.25 | C200: 0.008154154537 | D200: 0.008154154537 | I200: 939
... 337 more rows

Sheet E(Xbar)(4an)
A1: ="An insurance company claims that the average cost per year for a policy is "&DOLLAR(B7,0)&"." -> An insurance company claims that the average cost per year for a policy is $822. | I1: Sample
A2: ="The standard deviation for the population is "&DOLLAR(B8,0)&"." -> The standard deviation for the population is $202. | I2: 716
A3: ="What is the probability of getting a sample mean within +/- "&DOLLAR(B8/SQRT(COUNT(I2:I301)))*2&"?" -> What is the probability of getting a sample mean within +/- 23.32? | I3: 926
A4: If you take a random sample and get a sample mean of | I4: 722
A5: =DOLLAR(AVERAGE(I2:I301),0)&" (n = "&COUNT(I2:I301)&"), is the claim reasonable?" -> $850 (n = 300), is the claim reasonable? | I5: 810
I6: 873
A7: Mew | B7: 822 | C7: Annual Auto Insurance Cost | I7: 873
A8: Sigma | B8: 202 | I8: 1074
A9: Margin of error = Standard Error * 2 | B9: =B14*2 -> 23.32495088 | I9: 1135
A10: n | B10: =COUNT(I2:I301) -> 300 | I10: 763
A11: N | B11: 25000 | I11: 1074
A12: n/N | B12: =B10/B11 -> 0.012 | C12: =IF(B12="","","n/N <= 0.05, don't need SQRT((N-n)/(N-1))") -> n/N <= 0.05, don't need SQRT((N-n)/(N-1)) | I12: 675
A13: Sample Xbar - Point Estimate of Population Parameter | B13: =ROUND(AVERAGE(I2:I301),0) -> 850 | I13: 824
A14: Standard Error | B14: =B8/SQRT(B10) -> 11.66247544 | I14: 988
A15: Low Xbar | B15: =$B$7-$B$9 -> 798.6750491 | I15: 873
A16: High Xbar | B16: =$B$7+$B$9 -> 845.3249509 | I16: 824
A17: ="P("&DOLLAR(B7-B8/SQRT(COUNT(I2:I301))*2)&" <= Xbar <= "&DOLLAR(B7+B8/SQRT(COUNT(I2:I301))*2)&") = "&IF(ISNUMBER(B17),ROUND(B17,4),"") -> P($798.68 <= Xbar <= $845.32) = 0.9545 | B17: =_xlfn.NORM.DIST(B16,B7,B14,1)-_xlfn.NORM.DIST(B15,B7,B14,1) -> 0.9544997361 | I17: 873
A18: Conclusion: | I18: 622
A19: Xbar is only a point estimate of μ. The difference is always Sampling Error (Xbar - μ). | I19: 1074
A20: Is our sampling error acceptable, or NOT acceptable? | I20: 867
A21: Statements we are allowed to make: | I21: 824
A22: We know Mew, μ, and we make a statement about the probability that Xbar lies within an interval. | I22: 722
A23: ="We are "&TEXT($B$17,"0%")&" sure that our Xbar will lie between "&DOLLAR($B$15)&" and "&DOLLAR($B$16)&"." -> We are 95% sure that our Xbar will lie between $798.68 and $845.32. | I23: 703
A24: ="We run a "&TEXT(1-$B$17,"0%")&" risk that our Xbar will lie OUTSIDE the interval "&DOLLAR($B$15)&" and "&DOLLAR($B$16)&"." -> We run a 5% risk that our Xbar will lie OUTSIDE the interval $798.68 and $845.32. | I24: 824
A25: ="The probability is "&TEXT($B$17,"0%")&" that our Xbar lies with in +/- "&DOLLAR(B9)&"." -> The probability is 95% that our Xbar lies with in +/- $23.32. | I25: 824
A26: ="The probability is "&TEXT($B$17,"0%")&" that our Xbar lies with in +/- 2 standard deviations (Standard Error because it is the SDOXbar)" -> The probability is 95% that our Xbar lies with in +/- 2 standard deviations (Standard Error because it is the SDOXbar) | I26: 424
A27: ="Our Xbar of "&DOLLAR(B13)&" is outside our interval and because the chances of this are so small ("&TEXT(1-B17,"0%")&"), we say that it" -> Our Xbar of $850.00 is outside our interval and because the chances of this are so small (5%), we say that it | I27: 962
A28: ="does not seem reasonable that we could have taken a sample and gotten "&DOLLAR(B13)&". Our sampling error is not acceptable." -> does not seem reasonable that we could have taken a sample and gotten $850.00. Our sampling error is not acceptable. | I28: 1002
A29: ="We are "&TEXT(B17,"0%")&" sure that the original claim of "&DOLLAR(B7)&" does not seem reasonable." -> We are 95% sure that the original claim of $822.00 does not seem reasonable. | I29: 926
I30: 988
I31: 926
I32: 1105
I33: 761
E34: 761.5 | F34: =$B$7-2*$B$8/SQRT(COUNT($I$2:$I$301)) -> 798.6750491 | I34: 926
E35: 886.5 | F35: =$B$7+2*$B$8/SQRT(COUNT($I$2:$I$301)) -> 845.3249509 | I35: 886
B36: Xbar | C36: P(Xbar) | D36: =A17 -> P($798.68 <= Xbar <= $845.32) = 0.9545 | I36: 1035
B37: 761.5 | C37: =_xlfn.NORM.DIST(B37,$B$7,$B$8/SQRT(COUNT($I$2:$I$301)),0) -> 4.903177405e-08 | D37: =IF(AND(B37>=$F$34,B37<=$F$35),C37,"") ->  | I37: 775
B38: 761.75 | C38: =_xlfn.NORM.DIST(B38,$B$7,$B$8/SQRT(COUNT($I$2:$I$301)),0) -> 5.478635213e-08 | D38: =IF(AND(B38>=$F$34,B38<=$F$35),C38,"") ->  | I38: 724
B39: 762 | C39: 6.118818875e-08 | I39: 671
B40: 762.25 | C40: 6.830669091e-08 | I40: 905
B41: 762.5 | C41: 7.621831287e-08 | I41: 915
B42: 762.75 | C42: 8.500722742e-08 | I42: 516
B43: 763 | C43: 9.476605625e-08 | I43: 926
B44: 763.25 | C44: 1.055966643e-07 | I44: 715
B45: 763.5 | C45: 1.176110228e-07 | I45: 842
B46: 763.75 | C46: 1.309321471e-07 | I46: 618
B47: 764 | C47: 1.456951144e-07 | I47: 988
B48: 764.25 | C48: 1.620481671e-07 | I48: 872
B49: 764.5 | C49: 1.801539105e-07 | I49: 769
B50: 764.75 | C50: 2.001906084e-07 | I50: 819
B51: 765 | C51: 2.223535876e-07 | I51: 549
B52: 765.25 | C52: 2.468567565e-07 | I52: 843
B53: 765.5 | C53: 2.739342474e-07 | I53: 921
B54: 765.75 | C54: 3.038421918e-07 | I54: 1074
B55: 766 | C55: 3.368606363e-07 | I55: 926
B56: 766.25 | C56: 3.732956119e-07 | I56: 824
B57: 766.5 | C57: 4.134813644e-07 | I57: 1030
B58: 766.75 | C58: 4.57782759e-07 | I58: 870
B59: 767 | C59: 5.065978701e-07 | I59: 1074
B60: 767.25 | C60: 5.603607689e-07 | I60: 824
B61: 767.5 | C61: 6.195445218e-07 | I61: 1074
B62: 767.75 | C62: 6.846644139e-07 | I62: 601
B63: 768 | C63: 7.562814108e-07 | I63: 824
B64: 768.25 | C64: 8.350058756e-07 | I64: 873
B65: 768.5 | C65: 9.215015562e-07 | I65: 1074
B66: 768.75 | C66: 1.016489859e-06 | I66: 673
B67: 769 | C67: 1.120754427e-06 | I67: 678
B68: 769.25 | C68: 1.235146044e-06 | I68: 722
B69: 769.5 | C69: 1.360587874e-06 | I69: 722
B70: 769.75 | C70: 1.498081069e-06 | I70: 838
B71: 770 | C71: 1.648710758e-06 | I71: 476
B72: 770.25 | C72: 1.813652435e-06 | I72: 988
B73: 770.5 | C73: 1.994178779e-06 | I73: 745
B74: 770.75 | C74: 2.191666923e-06 | I74: 736
B75: 771 | C75: 2.407606193e-06 | I75: 873
B76: 771.25 | C76: 2.643606347e-06 | I76: 905
B77: 771.5 | C77: 2.901406341e-06 | I77: 988
B78: 771.75 | C78: 3.182883637e-06 | I78: 988
B79: 772 | C79: 3.490064095e-06 | I79: 1074
B80: 772.25 | C80: 3.82513247e-06 | I80: 1184
B81: 772.5 | C81: 4.190443532e-06 | I81: 775
B82: 772.75 | C82: 4.588533864e-06 | I82: 824
B83: 773 | C83: 5.022134336e-06 | I83: 926
B84: 773.25 | C84: 5.494183309e-06 | I84: 588
B85: 773.5 | C85: 6.007840591e-06 | I85: 761
B86: 773.75 | C86: 6.56650217e-06 | I86: 739
B87: 774 | C87: 7.173815765e-06 | I87: 907
B88: 774.25 | C88: 7.833697223e-06 | I88: 722
B89: 774.5 | C89: 8.550347789e-06 | I89: 1108
B90: 774.75 | C90: 9.328272284e-06 | I90: 722
B91: 775 | C91: 1.017229823e-05 | I91: 1074
B92: 775.25 | C92: 1.108759591e-05 | I92: 1074
B93: 775.5 | C93: 1.20796995e-05 | I93: 824
B94: 775.75 | C94: 1.315452915e-05 | I94: 532
B95: 776 | C95: 1.431841416e-05 | I95: 824
B96: 776.25 | C96: 1.557811726e-05 | I96: 760
B97: 776.5 | C97: 1.694085997e-05 | I97: 926
B98: 776.75 | C98: 1.841434911e-05 | I98: 1074
B99: 777 | C99: 2.000680448e-05 | I99: 1074
B100: 777.25 | C100: 2.172698772e-05 | I100: 873
B101: 777.5 | C101: 2.35842324e-05 | I101: 1074
B102: 777.75 | C102: =_xlfn.NORM.DIST(B102,$B$7,$B$8/SQRT(COUNT($I$2:$I$301)),0) -> 2.558847526e-05 | D102: =IF(AND(B102>=$F$34,B102<=$F$35),C102,"") ->  | I102: 910
B103: 778 | C103: 2.775028876e-05 | I103: 528
B104: 778.25 | C104: 3.008091487e-05 | I104: 873
B105: 778.5 | C105: 3.259230008e-05 | I105: 686
B106: 778.75 | C106: 3.529713172e-05 | I106: 390
B107: 779 | C107: 3.820887552e-05 | I107: 873
B108: 779.25 | C108: 4.134181445e-05 | I108: 852
B109: 779.5 | C109: 4.47110888e-05 | I109: 1074
B110: 779.75 | C110: 4.833273755e-05 | I110: 692
B111: 780 | C111: 5.222374089e-05 | I111: 816
B112: 780.25 | C112: 5.640206407e-05 | I112: 873
B113: 780.5 | C113: 6.088670232e-05 | I113: 996
B114: 780.75 | C114: 6.569772695e-05 | I114: 717
B115: 781 | C115: 7.085633265e-05 | I115: 926
B116: 781.25 | C116: 7.638488568e-05 | I116: 775
B117: 781.5 | C117: 8.230697321e-05 | I117: 1074
B118: 781.75 | C118: 8.864745358e-05 | I118: 806
B119: 782 | C119: 9.543250734e-05 | I119: 722
B120: 782.25 | C120: 0.0001026896892 | I120: 775
B121: 782.5 | C121: 0.0001104479808 | I121: 836
B122: 782.75 | C122: 0.0001187378435 | I122: 743
B123: 783 | C123: 0.0001275912727 | I123: 885
B124: 783.25 | C124: 0.0001370418515 | I124: 991
B125: 783.5 | C125: 0.0001471248054 | I125: 1226
B126: 783.75 | C126: 0.0001578770565 | I126: 763
B127: 784 | C127: 0.0001693372785 | I127: 673
B128: 784.25 | C128: 0.0001815459507 | I128: 951
B129: 784.5 | C129: 0.000194545412 | I129: 771
B130: 784.75 | C130: 0.0002083799145 | I130: 926
B131: 785 | C131: 0.0002230956763 | I131: 758
B132: 785.25 | C132: 0.0002387409332 | I132: 988
B133: 785.5 | C133: 0.0002553659898 | I133: 628
B134: 785.75 | C134: 0.0002730232686 | I134: 824
B135: 786 | C135: 0.0002917673577 | I135: 1074
B136: 786.25 | C136: 0.0003116550574 | I136: 626
B137: 786.5 | C137: 0.0003327454235 | I137: 1074
B138: 786.75 | C138: 0.0003550998092 | I138: 954
B139: 787 | C139: 0.0003787819038 | I139: 788
B140: 787.25 | C140: 0.000403857769 | I140: 1020
B141: 787.5 | C141: 0.0004303958715 | I141: 988
B142: 787.75 | C142: 0.0004584671124 | I142: 1010
B143: 788 | C143: 0.0004881448524 | I143: 605
B144: 788.25 | C144: 0.0005195049333 | I144: 775
B145: 788.5 | C145: 0.0005526256947 | I145: 775
B146: 788.75 | C146: 0.0005875879859 | I146: 926
B147: 789 | C147: 0.0006244751725 | I147: 722
B148: 789.25 | C148: 0.0006633731379 | I148: 1074
B149: 789.5 | C149: 0.0007043702784 | I149: 500
B150: 789.75 | C150: 0.0007475574923 | I150: 952
B151: 790 | C151: 0.0007930281626 | I151: 740
B152: 790.25 | C152: 0.000840878132 | I152: 824
B153: 790.5 | C153: 0.0008912056718 | I153: 775
B154: 790.75 | C154: 0.0009441114417 | I154: 1232
B155: 791 | C155: 0.0009996984431 | I155: 926
B156: 791.25 | C156: 0.001058071963 | I156: 765
B157: 791.5 | C157: 0.001119339507 | I157: 460
B158: 791.75 | C158: 0.001183610733 | I158: 436
B159: 792 | C159: 0.001250997357 | I159: 601
B160: 792.25 | C160: 0.001321613072 | I160: 967
B161: 792.5 | C161: 0.001395573437 | I161: 988
B162: 792.75 | C162: 0.001472995769 | I162: 776
B163: 793 | C163: 0.001553999018 | I163: 706
B164: 793.25 | C164: 0.001638703632 | I164: 571
B165: 793.5 | C165: 0.001727231414 | I165: 906
B166: 793.75 | C166: =_xlfn.NORM.DIST(B166,$B$7,$B$8/SQRT(COUNT($I$2:$I$301)),0) -> 0.001819705366 | D166: =IF(AND(B166>=$F$34,B166<=$F$35),C166,"") ->  | I166: 769
B167: 794 | C167: 0.001916249519 | I167: 616
B168: 794.25 | C168: 0.00201698876 | I168: 1074
B169: 794.5 | C169: 0.002122048632 | I169: 873
B170: 794.75 | C170: 0.002231555144 | I170: 557
B171: 795 | C171: 0.002345634546 | I171: 873
B172: 795.25 | C172: 0.002464413113 | I172: 1268
B173: 795.5 | C173: 0.002588016903 | I173: 1074
B174: 795.75 | C174: 0.002716571511 | I174: 926
B175: 796 | C175: 0.002850201805 | I175: 753
B176: 796.25 | C176: 0.002989031662 | I176: 988
B177: 796.5 | C177: 0.00313318368 | I177: 1050
B178: 796.75 | C178: 0.003282778888 | I178: 710
B179: 797 | C179: 0.003437936442 | I179: 403
B180: 797.25 | C180: 0.003598773311 | I180: 775
B181: 797.5 | C181: 0.003765403952 | I181: 926
B182: 797.75 | C182: 0.003937939984 | I182: 824
B183: 798 | C183: 0.004116489837 | I183: 886
B184: 798.25 | C184: 0.004301158411 | I184: 1021
B185: 798.5 | C185: 0.004492046713 | I185: 926
B186: 798.75 | C186: 0.004689251495 | D186: 0.004689251495 | I186: 873
B187: 799 | C187: 0.004892864884 | D187: 0.004892864884 | I187: 722
B188: 799.25 | C188: 0.005102974005 | D188: 0.005102974005 | I188: 1074
B189: 799.5 | C189: 0.0053196606 | D189: 0.0053196606 | I189: 687
B190: 799.75 | C190: 0.005543000647 | D190: 0.005543000647 | I190: 873
B191: 800 | C191: 0.005773063965 | D191: 0.005773063965 | I191: 1081
B192: 800.25 | C192: 0.006009913833 | D192: 0.006009913833 | I192: 562
B193: 800.5 | C193: 0.006253606595 | D193: 0.006253606595 | I193: 577
B194: 800.75 | C194: 0.006504191272 | D194: 0.006504191272 | I194: 1074
B195: 801 | C195: 0.006761709171 | D195: 0.006761709171 | I195: 759
B196: 801.25 | C196: 0.0070261935 | D196: 0.0070261935 | I196: 988
B197: 801.5 | C197: 0.007297668987 | D197: 0.007297668987 | I197: 1032
B198: 801.75 | C198: 0.007576151499 | D198: 0.007576151499 | I198: 705
B199: 802 | C199: 0.007861647669 | D199: 0.007861647669 | I199: 1090
B200: 802.25 | C200: 0.008154154537 | D200: 0.008154154537 | I200: 939
... 337 more rows
